{"text_format":"1","workbook":"xlsx","n_sheets":27,"sheets":["Todo","HD","lkd393Dkd","HOME","icon","TTDN","TONDK_TAM","DATA","Contract","Contract_ct","lhe_ct","SOQUY","QLS","CUS03","CUS02","CUS01","BCQT","SETUP","DM_HDDR","DM_HDDV","DATANS","BCNS","In-Chi","In-Thu","DM_LHE","DM","CF1"],"not_rendered":{"charts":3,"images":28,"macros":1,"external_links":0,"defined_names":183,"comments":0,"pivot_tables":0},"unopened":[],"bounds":{"document_bytes":16777216,"sheet_cells":100000,"rows_first":2000,"rows_last":500,"rows_between":2000,"halvings":0,"cell_chars":16384,"cell_head_chars":4096},"cells_cut":0,"cells_raw":0,"read":"whole","date_system":"1900"}

{"sheet":"Todo","index":0,"n_rows":0,"n_cols":0,"rows_kept":0,"cut":false,"hidden":true,"merged":[]}

{"sheet":"HD","index":1,"n_rows":61,"n_cols":21,"rows_kept":61,"cut":false,"hidden":false,"merged":[]}
["PHẦN MỀM QUẢN LÝ THU CHI DOANH NGHIỆP",null,null,null,null,null,null,null,null,null,null,null,null,null,"ZALO HỖ TRỢ: 0869 770 968"]
[]
[]
[null,null,"LỖI SECURITY RISK"]
[null,null,"Vào năm 2022, Microsoft đã phát hành phiên bản Excel mới chặn Macro của các file excel tải từ Internet về. (Hình minh họa phía dưới)"]
[]
[]
[]
[]
[null,null,"Cách khắc phục như sau:"]
[null,null,"- B1: Đóng file đang lỗi"]
[null,null,"- B2: Bấm chuột phải vào tên file mới tải về (hình minh họa bên phải)"]
[null,null,"- B3: Bấm chọn \"Properties\" ở cuối cùng của danh sách hiện ra"]
[null,null,"- B4: Tick chọn \"Unblock\" ở phần Security như hình bên phải"]
[null,null,"- B5: Bấm chọn \"OK\" ở cuối cửa sổ để hoàn tất"]
[]
[]
[]
[]
[]
[null,null,"LẦN ĐẦU SỬ DỤNG PHẦN MỀM BẠN CẦN ENABLE EDITING, sau đó ENABLE MACRO THEO HƯỚNG DẪN TẠI HÌNH DƯỚI."]
[]
[null,null,"Lưu ý: 2 hình dưới đây chỉ là minh họa, phím mũi tên chỉ là để minh họa giúp bạn nhận diện nút bấm dễ hơn. Nút Enable Editing/ Content sẽ ở trên thanh công cụ."]
[]
[]
[null,null,null,null,null,null,null,null,null,null,null,null,null,null,null,null,null,null,null,null,"LƯU Ý: Nếu bạn không thấy nút nào chứa chữ Enable, bạn hãy làm theo hướng dẫn ở hình dưới"]
[]
[]
[]
[]
[]
[]
[]
[]
[]
[]
[]
[]
[]
[]
[]
[]
[]
[]
[]
[]
[null,null,"CÂU HỎI PHỔ BIẾN"]
[]
[null,null,"Tôi nhập dữ liệu rồi nhưng báo cáo không lên số liệu."]
[null,null,"Thường do 2 nguyên nhân sau:"]
[null,null,"- Bạn chưa chọn ngày tháng xem báo cáo chứa dữ liệu đã nhập"]
[null,null,"- Cài đặt ngày tháng, ngôn ngữ, số tiền trong máy tính của bạn chưa đúng chuẩn. Xem cách sửa tại:"]
[null,null,"https://wpro.vn/reset"]
[]
[]
[]
[null,null,"Tôi mua muốn mua phần mềm thì làm thế nào?"]
[null,null,"Rất đơn giản, chỉ với 3 bước:"]
[null,null,"- Bạn thanh toán phí qua chuyển khoản (Thông tin CK: https://wpro.vn/ck, Báo giá xem tại trang Home của phần mềm)"]
[null,null,"- Gửi email tới webkynang.vn@gmail.com với nội dung là Tên công ty/ cửa hàng của bạn."]
[null,null,"- Wpro.vn sẽ thực hiện việc cài phần mềm Bản quyền trên máy của bạn."]

{"sheet":"lkd393Dkd","index":2,"n_rows":1,"n_cols":18,"rows_kept":1,"cut":false,"hidden":true,"merged":[]}
[null,null,null,null,null,null,null,null,null,null,null,null,null,null,null,null,null,1]

{"sheet":"HOME","index":3,"n_rows":3,"n_cols":4,"rows_kept":3,"cut":false,"hidden":false,"merged":[]}
[]
[null,null,null,"WPRO THU CHI"]
[null,null,null,"PHẦN MỀM THU CHI DOANH NGHIỆP"]

{"sheet":"icon","index":4,"n_rows":0,"n_cols":0,"rows_kept":0,"cut":false,"hidden":true,"merged":[]}

{"sheet":"TTDN","index":5,"n_rows":29,"n_cols":23,"rows_kept":29,"cut":false,"hidden":false,"merged":[]}
[null,null,null,"THÔNG TIN DOANH NGHIỆP"]
[]
[]
[null,null,"1. THÔNG TIN CHUNG",null,null,null,null,null,null,null,null,null,null,null,null,null,null,null,null,null,null,null,"."]
[]
[null,null,"Công ty",null,null,":","WPRO.VN"]
[null,null,"Địa chỉ",null,null,":","Tầng 06, tòa nhà Sannam, 78 Duy Tân, Cầu Giấy, Hà Nội"]
[null,null,"MST",null,null,":","0107959448",null,null,null,null,null,"SĐT:","... Sdt....",null,null,null,"Email:",null,".. Email..."]
[]
[null,null,"2. NHÂN SỰ"]
[]
[null,null,"Người duyệt",null,null,":","…"]
[null,null,"Kế toán Trưởng",null,null,":","…"]
[null,null,"Thủ quỹ",null,null,":","…"]
[null,null,"Người lập phiếu",null,null,":","…"]
[]
[null,null,"3. CÀI ĐẶT"]
[]
[null,null,"Backup folder",null,null,":","C:\\Users\\admin\\Desktop"]
[null,null,"Khôi phục dữ liệu (áp dụng cả gói ECO)",null,null,":"]
[null,null,"Tạo backup khi tắt",null,null,":","Yes"]
[null,null,"Tự động lưu khi thêm dữ liệu",null,null,":","Yes"]
[null,null,"Xóa dữ liệu",null,null,":"]
[null,null,"Tự động tạo số phiếu",null,null,":","Yes"]
[null,null,"Số chứng từ bắt đầu với PT/PC",null,null,":","Yes"]
[null,null,"Bật bảng lịch chọn ngày",null,null,":","No"]
[null,null,"Tạo icon mở phần mềm trên Desktop",null,null,":"]
[null,null,"Các quy tắc tạo chứng từ",null,null,":"]
[null,null,"Tạo kỳ mới tự động",null,null,":"]

{"sheet":"TONDK_TAM","index":6,"n_rows":109,"n_cols":4,"rows_kept":109,"cut":false,"hidden":true,"merged":[]}
[]
[]
[]
[]
["MÃ TÀI KHOẢN TIỀN","TÊN TÀI KHOẢN","SỐ DƯ ĐẦU (vnđ)","GHI CHÚ"]
[]
[]
[]
[]
[]
[]
[]
[]
[]
[]
[null,null,null,""]
[null,null,null,""]
[null,null,null,""]
[null,null,null,""]
[null,null,null,""]
[null,null,null,""]
[null,null,null,""]
[null,null,null,""]
[null,null,null,""]
[null,null,null,""]
[null,null,null,""]
[null,null,null,""]
[null,null,null,""]
[null,null,null,""]
[null,null,null,""]
[null,null,null,""]
[null,null,null,""]
[null,null,null,""]
[null,null,null,""]
[null,null,null,""]
[null,null,null,""]
[null,null,null,""]
[null,null,null,""]
[null,null,null,""]
[null,null,null,""]
[null,null,null,""]
[null,null,null,""]
[null,null,null,""]
[null,null,null,""]
[null,null,null,""]
[null,null,null,""]
[null,null,null,""]
[null,null,null,""]
[null,null,null,""]
[null,null,null,""]
[null,null,null,""]
[null,null,null,""]
[null,null,null,""]
[null,null,null,""]
[null,null,null,""]
[null,null,null,""]
[null,null,null,""]
[null,null,null,""]
[null,null,null,""]
[null,null,null,""]
[null,null,null,""]
[null,null,null,""]
[null,null,null,""]
[null,null,null,""]
[null,null,null,""]
[null,null,null,""]
[null,null,null,""]
[null,null,null,""]
[null,null,null,""]
[null,null,null,""]
[null,null,null,""]
[null,null,null,""]
[null,null,null,""]
[null,null,null,""]
[null,null,null,""]
[null,null,null,""]
[null,null,null,""]
[null,null,null,""]
[null,null,null,""]
[null,null,null,""]
[null,null,null,""]
[null,null,null,""]
[null,null,null,""]
[null,null,null,""]
[null,null,null,""]
[null,null,null,""]
[null,null,null,""]
[null,null,null,""]
[null,null,null,""]
[null,null,null,""]
[null,null,null,""]
[null,null,null,""]
[null,null,null,""]
[null,null,null,""]
[null,null,null,""]
[null,null,null,""]
[null,null,null,""]
[null,null,null,""]
[null,null,null,""]
[null,null,null,""]
[null,null,null,""]
[null,null,null,""]
[null,null,null,""]
[null,null,null,""]
[null,null,null,""]
[null,null,null,""]
[null,null,null,""]
[null,null,null,""]
["","","",""]

{"sheet":"DATA","index":7,"n_rows":2,"n_cols":27,"rows_kept":2,"cut":false,"hidden":false,"merged":[[0,8,1,8],[0,1,0,2],[0,24,1,24],[0,25,1,25],[0,26,1,26],[0,9,1,9],[0,19,1,19],[0,21,1,21],[0,22,1,22],[0,23,1,23],[0,20,1,20],[0,12,1,12],[0,13,1,13],[0,14,1,14],[0,10,1,10],[0,11,1,11],[0,0,1,0],[0,3,1,3],[0,4,0,5],[0,7,1,7],[0,6,1,6],[0,30,1,30],[0,31,1,31],[0,27,1,27],[0,18,1,18],[0,15,0,17],[0,28,1,28],[0,29,1,29]]}
["NGÀY GHI SỔ","CHỨNG TỪ",null,"DIỄN GIẢI","SỐ TIỀN",null,"TÀI KHOẢN","LOẠI CHI PHÍ","LOẠI DOANH THU","CHI NHÁNH/\nCÔNG TY CON","MÃ NGÂN SÁCH","SỐ HỢP ĐỒNG\nĐẦU VÀO","SỐ HỢP ĐỒNG ĐẦU RA\n/ DỰ ÁN/ CÔNG TRÌNH",null,null,"THÔNG TIN NGƯỜI GIAO DỊCH",null,null,"KÈM THEO","SỬA TÊN\nCỘT","SỬA TÊN\nCỘT","SỬA TÊN\nCỘT","SỬA TÊN\nCỘT","SỬA TÊN\nCỘT","SỬA TÊN\nCỘT","SỬA TÊN\nCỘT","SỬA TÊN\nCỘT"]
[null,"SỐ","NGÀY",null,"THU","CHI",null,null,null,null,null,null,null,null,null,"Họ và tên","Đơn vị","Địa chỉ"]

{"sheet":"Contract","index":8,"n_rows":504,"n_cols":17,"rows_kept":504,"cut":false,"hidden":false,"merged":[]}
[null,"BÁO CÁO HỢP ĐỒNG/ CÔNG TRÌNH","BÁO CÁO HỢP ĐỒNG ĐẦU VÀO"]
[null,null,null,null,null,null,null,null,null,null,null,null,null,null,null,null,"Lưu ý: Không quản lý theo Chi nhánh/ Công ty con"]
[null,null,null,"Tự động","Tự động","Tự động","Tự động","Tự động","Tự động","Tự động","Tự động","Tự động","Tự động","Tự động"]
[null,null,"STT","MÃ HỢP ĐỒNG","TÊN HỢP ĐỒNG","LOẠI","GIÁ TRỊ HỢP ĐỒNG","ĐÃ TRẢ","CÒN PHẢI TRẢ","CHI PHÍ","GIÁ TRỊ HỢP ĐỒNG - CHI PHÍ","SỐ HÓA ĐƠN","NGÀY HÓA ĐƠN","GIÁ TRỊ XUẤT HĐ",null,null,"GHI CHÚ"]
[null,null,1,null,null,null,null,0,0]
[null,null,2]
[null,null,3]
[null,null,4]
[null,null,5]
[null,null,6]
[null,null,7]
[null,null,8]
[null,null,9]
[null,null,10]
[null,null,11]
[null,null,12]
[null,null,13]
[null,null,14]
[null,null,15]
[null,null,16]
[null,null,17]
[null,null,18]
[null,null,19]
[null,null,20]
[null,null,21]
[null,null,22]
[null,null,23]
[null,null,24]
[null,null,25]
[null,null,26]
[null,null,27]
[null,null,28]
[null,null,29]
[null,null,30]
[null,null,31]
[null,null,32]
[null,null,33]
[null,null,34]
[null,null,35]
[null,null,36]
[null,null,37]
[null,null,38]
[null,null,39]
[null,null,40]
[null,null,41]
[null,null,42]
[null,null,43]
[null,null,44]
[null,null,45]
[null,null,46]
[null,null,47]
[null,null,48]
[null,null,49]
[null,null,50]
[null,null,51]
[null,null,52]
[null,null,53]
[null,null,54]
[null,null,55]
[null,null,56]
[null,null,57]
[null,null,58]
[null,null,59]
[null,null,60]
[null,null,61]
[null,null,62]
[null,null,63]
[null,null,64]
[null,null,65]
[null,null,66]
[null,null,67]
[null,null,68]
[null,null,69]
[null,null,70]
[null,null,71]
[null,null,72]
[null,null,73]
[null,null,74]
[null,null,75]
[null,null,76]
[null,null,77]
[null,null,78]
[null,null,79]
[null,null,80]
[null,null,81]
[null,null,82]
[null,null,83]
[null,null,84]
[null,null,85]
[null,null,86]
[null,null,87]
[null,null,88]
[null,null,89]
[null,null,90]
[null,null,91]
[null,null,92]
[null,null,93]
[null,null,94]
[null,null,95]
[null,null,96]
[null,null,97]
[null,null,98]
[null,null,99]
[null,null,100]
[null,null,101]
[null,null,102]
[null,null,103]
[null,null,104]
[null,null,105]
[null,null,106]
[null,null,107]
[null,null,108]
[null,null,109]
[null,null,110]
[null,null,111]
[null,null,112]
[null,null,113]
[null,null,114]
[null,null,115]
[null,null,116]
[null,null,117]
[null,null,118]
[null,null,119]
[null,null,120]
[null,null,121]
[null,null,122]
[null,null,123]
[null,null,124]
[null,null,125]
[null,null,126]
[null,null,127]
[null,null,128]
[null,null,129]
[null,null,130]
[null,null,131]
[null,null,132]
[null,null,133]
[null,null,134]
[null,null,135]
[null,null,136]
[null,null,137]
[null,null,138]
[null,null,139]
[null,null,140]
[null,null,141]
[null,null,142]
[null,null,143]
[null,null,144]
[null,null,145]
[null,null,146]
[null,null,147]
[null,null,148]
[null,null,149]
[null,null,150]
[null,null,151]
[null,null,152]
[null,null,153]
[null,null,154]
[null,null,155]
[null,null,156]
[null,null,157]
[null,null,158]
[null,null,159]
[null,null,160]
[null,null,161]
[null,null,162]
[null,null,163]
[null,null,164]
[null,null,165]
[null,null,166]
[null,null,167]
[null,null,168]
[null,null,169]
[null,null,170]
[null,null,171]
[null,null,172]
[null,null,173]
[null,null,174]
[null,null,175]
[null,null,176]
[null,null,177]
[null,null,178]
[null,null,179]
[null,null,180]
[null,null,181]
[null,null,182]
[null,null,183]
[null,null,184]
[null,null,185]
[null,null,186]
[null,null,187]
[null,null,188]
[null,null,189]
[null,null,190]
[null,null,191]
[null,null,192]
[null,null,193]
[null,null,194]
[null,null,195]
[null,null,196]
[null,null,197]
[null,null,198]
[null,null,199]
[null,null,200]
[null,null,201]
[null,null,202]
[null,null,203]
[null,null,204]
[null,null,205]
[null,null,206]
[null,null,207]
[null,null,208]
[null,null,209]
[null,null,210]
[null,null,211]
[null,null,212]
[null,null,213]
[null,null,214]
[null,null,215]
[null,null,216]
[null,null,217]
[null,null,218]
[null,null,219]
[null,null,220]
[null,null,221]
[null,null,222]
[null,null,223]
[null,null,224]
[null,null,225]
[null,null,226]
[null,null,227]
[null,null,228]
[null,null,229]
[null,null,230]
[null,null,231]
[null,null,232]
[null,null,233]
[null,null,234]
[null,null,235]
[null,null,236]
[null,null,237]
[null,null,238]
[null,null,239]
[null,null,240]
[null,null,241]
[null,null,242]
[null,null,243]
[null,null,244]
[null,null,245]
[null,null,246]
[null,null,247]
[null,null,248]
[null,null,249]
[null,null,250]
[null,null,251]
[null,null,252]
[null,null,253]
[null,null,254]
[null,null,255]
[null,null,256]
[null,null,257]
[null,null,258]
[null,null,259]
[null,null,260]
[null,null,261]
[null,null,262]
[null,null,263]
[null,null,264]
[null,null,265]
[null,null,266]
[null,null,267]
[null,null,268]
[null,null,269]
[null,null,270]
[null,null,271]
[null,null,272]
[null,null,273]
[null,null,274]
[null,null,275]
[null,null,276]
[null,null,277]
[null,null,278]
[null,null,279]
[null,null,280]
[null,null,281]
[null,null,282]
[null,null,283]
[null,null,284]
[null,null,285]
[null,null,286]
[null,null,287]
[null,null,288]
[null,null,289]
[null,null,290]
[null,null,291]
[null,null,292]
[null,null,293]
[null,null,294]
[null,null,295]
[null,null,296]
[null,null,297]
[null,null,298]
[null,null,299]
[null,null,300]
[null,null,301]
[null,null,302]
[null,null,303]
[null,null,304]
[null,null,305]
[null,null,306]
[null,null,307]
[null,null,308]
[null,null,309]
[null,null,310]
[null,null,311]
[null,null,312]
[null,null,313]
[null,null,314]
[null,null,315]
[null,null,316]
[null,null,317]
[null,null,318]
[null,null,319]
[null,null,320]
[null,null,321]
[null,null,322]
[null,null,323]
[null,null,324]
[null,null,325]
[null,null,326]
[null,null,327]
[null,null,328]
[null,null,329]
[null,null,330]
[null,null,331]
[null,null,332]
[null,null,333]
[null,null,334]
[null,null,335]
[null,null,336]
[null,null,337]
[null,null,338]
[null,null,339]
[null,null,340]
[null,null,341]
[null,null,342]
[null,null,343]
[null,null,344]
[null,null,345]
[null,null,346]
[null,null,347]
[null,null,348]
[null,null,349]
[null,null,350]
[null,null,351]
[null,null,352]
[null,null,353]
[null,null,354]
[null,null,355]
[null,null,356]
[null,null,357]
[null,null,358]
[null,null,359]
[null,null,360]
[null,null,361]
[null,null,362]
[null,null,363]
[null,null,364]
[null,null,365]
[null,null,366]
[null,null,367]
[null,null,368]
[null,null,369]
[null,null,370]
[null,null,371]
[null,null,372]
[null,null,373]
[null,null,374]
[null,null,375]
[null,null,376]
[null,null,377]
[null,null,378]
[null,null,379]
[null,null,380]
[null,null,381]
[null,null,382]
[null,null,383]
[null,null,384]
[null,null,385]
[null,null,386]
[null,null,387]
[null,null,388]
[null,null,389]
[null,null,390]
[null,null,391]
[null,null,392]
[null,null,393]
[null,null,394]
[null,null,395]
[null,null,396]
[null,null,397]
[null,null,398]
[null,null,399]
[null,null,400]
[null,null,401]
[null,null,402]
[null,null,403]
[null,null,404]
[null,null,405]
[null,null,406]
[null,null,407]
[null,null,408]
[null,null,409]
[null,null,410]
[null,null,411]
[null,null,412]
[null,null,413]
[null,null,414]
[null,null,415]
[null,null,416]
[null,null,417]
[null,null,418]
[null,null,419]
[null,null,420]
[null,null,421]
[null,null,422]
[null,null,423]
[null,null,424]
[null,null,425]
[null,null,426]
[null,null,427]
[null,null,428]
[null,null,429]
[null,null,430]
[null,null,431]
[null,null,432]
[null,null,433]
[null,null,434]
[null,null,435]
[null,null,436]
[null,null,437]
[null,null,438]
[null,null,439]
[null,null,440]
[null,null,441]
[null,null,442]
[null,null,443]
[null,null,444]
[null,null,445]
[null,null,446]
[null,null,447]
[null,null,448]
[null,null,449]
[null,null,450]
[null,null,451]
[null,null,452]
[null,null,453]
[null,null,454]
[null,null,455]
[null,null,456]
[null,null,457]
[null,null,458]
[null,null,459]
[null,null,460]
[null,null,461]
[null,null,462]
[null,null,463]
[null,null,464]
[null,null,465]
[null,null,466]
[null,null,467]
[null,null,468]
[null,null,469]
[null,null,470]
[null,null,471]
[null,null,472]
[null,null,473]
[null,null,474]
[null,null,475]
[null,null,476]
[null,null,477]
[null,null,478]
[null,null,479]
[null,null,480]
[null,null,481]
[null,null,482]
[null,null,483]
[null,null,484]
[null,null,485]
[null,null,486]
[null,null,487]
[null,null,488]
[null,null,489]
[null,null,490]
[null,null,491]
[null,null,492]
[null,null,493]
[null,null,494]
[null,null,495]
[null,null,496]
[null,null,497]
[null,null,498]
[null,null,499]
[null,null,500]

{"sheet":"Contract_ct","index":9,"n_rows":7,"n_cols":27,"rows_kept":7,"cut":false,"hidden":false,"merged":[[4,7,5,7],[4,0,5,0],[4,1,4,2],[4,3,5,3],[4,4,4,5],[4,6,5,6],[4,21,5,21],[4,8,5,8],[4,9,5,9],[4,10,5,10],[4,11,5,11],[4,12,5,12],[4,13,5,13],[4,14,5,14],[4,15,4,17],[4,18,5,18],[4,19,5,19],[4,20,5,20],[4,22,5,22],[4,23,5,23],[4,24,5,24],[4,25,5,25],[4,26,5,26]]}
[null,"BÁO CÁO CHI TIẾT HỢP ĐỒNG",null,null,"Số hợp đồng","DV_0001","DR"]
[]
[]
[]
["NGÀY GHI SỔ","CHỨNG TỪ",null,"DIỄN GIẢI","SỐ TIỀN",null,"TÀI KHOẢN","LOẠI CHI PHÍ","LOẠI DOANH THU","CHI NHÁNH/\nCÔNG TY CON","MÃ NGÂN SÁCH","MÃ HỢP ĐỒNG/\nCÔNG TRÌNH",null,null,null,"THÔNG TIN NGƯỜI GIAO DỊCH",null,null,"KÈM THEO","SỬA TÊN\nCỘT","SỬA TÊN\nCỘT","SỬA TÊN\nCỘT","SỬA TÊN\nCỘT","SỬA TÊN\nCỘT","SỬA TÊN\nCỘT","SỬA TÊN\nCỘT","SỬA TÊN\nCỘT"]
[null,"SỐ","NGÀY",null,"THU","CHI",null,null,null,null,null,null,null,null,null,"Họ và tên","Đơn vị","Địa chỉ"]
[null,null,null,"TỔNG",{"$f":"SUM(E8:E10000)","v":0},{"$f":"SUM(F8:F10000)","v":0},null,null,null,null,null,"DV_0001","C Linh"]

{"sheet":"lhe_ct","index":10,"n_rows":10,"n_cols":27,"rows_kept":10,"cut":false,"hidden":false,"merged":[[4,22,5,22],[4,23,5,23],[4,24,5,24],[4,25,5,25],[4,26,5,26],[4,21,5,21],[4,8,5,8],[4,9,5,9],[4,10,5,10],[4,11,5,11],[4,12,5,12],[4,13,5,13],[4,14,5,14],[4,15,4,17],[4,18,5,18],[4,19,5,19],[4,20,5,20],[4,7,5,7],[4,0,5,0],[4,1,4,2],[4,3,5,3],[4,4,4,5],[4,6,5,6]]}
[null,"BÁO CÁO CHI TIẾT NGƯỜI LIÊN HỆ",null,null,"Chọn","Huy","DR"]
[]
[]
[]
["NGÀY GHI SỔ","CHỨNG TỪ",null,"DIỄN GIẢI","SỐ TIỀN",null,"TÀI KHOẢN","LOẠI CHI PHÍ","LOẠI DOANH THU","CHI NHÁNH/\nCÔNG TY CON","MÃ NGÂN SÁCH","MÃ HỢP ĐỒNG/\nCÔNG TRÌNH",null,null,null,"THÔNG TIN NGƯỜI GIAO DỊCH",null,null,"KÈM THEO","SỬA TÊN\nCỘT","SỬA TÊN\nCỘT","SỬA TÊN\nCỘT","SỬA TÊN\nCỘT","SỬA TÊN\nCỘT","SỬA TÊN\nCỘT","SỬA TÊN\nCỘT","SỬA TÊN\nCỘT"]
[null,"SỐ","NGÀY",null,"THU","CHI",null,null,null,null,null,null,null,null,null,"Họ và tên","Đơn vị","Địa chỉ"]
[null,null,null,"TỔNG",{"$f":"SUM(E8:E10000)","v":500000},{"$f":"SUM(F8:F10000)","v":3500000},null,null,null,null,null,"DV_0001","C Linh"]
["2021-01-01","PT00001","2021-01-01","Tạm ứng tiền mua ....",null,500000,"TM"]
["2021-01-10","PC00001","2021-01-10","Tạm ứng lương tháng 01",null,3000000,"ACB"]
["2021-01-13","PC00002","2021-01-13","Hoàn ứng tiền mua ....",500000,null,"TM"]

{"sheet":"SOQUY","index":11,"n_rows":38,"n_cols":43,"rows_kept":38,"cut":false,"hidden":false,"merged":[[3,40,3,41],[4,40,4,41],[2,42,2,44],[10,2,10,3],[10,8,11,8],[2,6,2,8],[3,6,3,8],[4,6,4,8],[3,37,3,38],[3,1,4,5],[5,1,5,7],[6,1,6,7],[4,37,4,38],[3,42,3,44],[4,42,4,44],[10,1,11,1],[10,4,11,4],[10,5,10,7],[13,42,13,44],[13,37,13,38],[13,40,13,41],[27,1,27,2],[27,4,27,5],[27,6,27,8],[26,6,26,8],[37,1,37,2],[37,4,37,5],[37,6,37,8],[28,1,28,2],[28,4,28,5],[28,6,28,8]]}
[null,null,null,null,null,null,null,null,null,null,null,null,null,null,null,null,null,{"$f":"IF(F1=\"\",\"\",MATCH(F1,SOPHIEU,0))","v":""}]
[null,"2021-01-01","2021-12-10"]
[null,{"$f":"ten","v":"WPRO.VN"},null,null,null,null,"Mẫu số ……. - DNN",null,null,null,null,null,null,null,null,null,null,null,null,null,null,null,null,null,null,null,null,null,null,null,null,null,null,null,null,null,null,null,null,null,null,null,{"$f":"NOW()","v":"2023-03-20T21:47:16.740"}]
[null,{"$f":"DC","v":"Tầng 06, tòa nhà Sannam, 78 Duy Tân, Cầu Giấy, Hà Nội"},null,null,null,null,"(Ban hành theo …. số …………………",null,null,null,null,null,null,null,null,null,null,null,null,null,null,null,null,null,null,null,null,null,null,null,null,null,null,null,null,null,null,"Thủ quỹ",null,null,"Kế toán trưởng",null,"Giám đốc"]
[null,null,null,null,null,null,"ngày ………………….. của Bộ trưởng BTC)",null,null,null,null,null,null,null,null,null,null,null,null,null,null,null,null,null,null,null,null,null,null,null,null,null,null,null,null,null,null,"(Ký, họ tên)",null,null,"(Ký, họ tên)",null,"(Ký, họ tên, đóng dấu)"]
[null,"SỔ QUỸ"]
[null,{"$f":"\"Từ ngày: \"&TEXT(sq_st,\"dd-mm-yyyy\")&\" - Đến ngày: \"& TEXT(sq_en,\"dd-mm-yyyy\")","v":"Từ ngày: 01-01-2021 - Đến ngày: 10-12-2021"}]
[]
[null,"Loại quỹ: ","TM","Tên Quỹ:",{"$f":"IFERROR(VLOOKUP(C9,DM,2,0),0)","v":0}]
[null,null,null,null,null,null,null,"Đơn vị tính: VNĐ"]
[null,"Ngày ghi sổ","Chứng từ",null,"Diễn giải","Số tiền",null,null,"Chi nhánh"]
[null,null,"Số chứng từ","Ngày",null,"Thu","Chi","Tồn"]
[null,"A","B","C","D",1,2,3,"E"]
[null,null,null,null,"Tồn đầu kỳ",null,null,{"$f":"IF(C9<>\"\",IFERROR(VLOOKUP($C$9,DM!$A$6:$C$109,3,0),0)+SUMIFS(THU,NGAY_GHI,\"<\"&sq_st,NGUONTIEN,C9)-SUMIFS(CHI,NGAY_GHI,\"<\"&sq_st,NGUONTIEN,C9),SUM(DM!C6:C109)+SUMIFS(THU,NGAY_GHI,\"<\"&sq_st)-SUMIFS(CHI,NGAY_GHI,\"<\"&sq_st))","v":0},null,null,null,null,null,null,null,null,null,null,null,null,null,null,null,null,null,null,null,null,null,null,null,null,null,null,null,null,null,{"$f":"TEN_TQ","v":"…"},null,null,{"$f":"TEN_KTT","v":"…"},null,{"$f":"TEN_GD","v":"…"}]
[null,null,null,null,"Phát sinh trong kỳ",{"$f":"SUM(F17:F24)","v":13700},{"$f":"SUM(G17:G24)","v":1000}]
[null,null,null,null,"Tồn cuối kỳ",null,null,{"$f":"+H14+F15-G15","v":12700}]
[null,"2021-11-23","PC-DC000001",null,"sđfh",null,1000,99000]
[null,"2021-11-23","PT000001","2021-11-24","thu tiền",300,null,99300]
[null,"2021-11-23","PT000002","2021-11-24","thu tiền",400,null,99700]
[null,"2021-11-24","pc000003","2021-11-24","thu tiền",null,null,99700]
[null,"2021-11-24","pc4","2021-11-24","thu tiền",null,null,99700]
[null,"2021-12-10","PT000003","2021-12-10","sdgsg",12000,null,111700]
[null,"2021-12-10","PT000004","2021-12-10","sdgsdg",1000,null,112700]
[]
[]
[]
[null,null,null,null,null,null,{"$f":"NOW()","v":"2023-03-20T21:47:16.660"}]
[null,"Thủ quỹ",null,null,"Kế toán trưởng",null,"Giám đốc"]
[null,"(Ký, họ tên)",null,null,"(Ký, họ tên)",null,"(Ký, họ tên, đóng dấu)"]
[]
[]
[]
[]
[]
[]
[]
[]
[null,{"$f":"TEN_TQ","v":"…"},null,null,{"$f":"TEN_KTT","v":"…"},null,{"$f":"TEN_GD","v":"…"}]

{"sheet":"QLS","index":12,"n_rows":2,"n_cols":1,"rows_kept":2,"cut":false,"hidden":true,"merged":[]}
["Danh sách sheet"]
["Sheet 01"]

{"sheet":"CUS03","index":13,"n_rows":1,"n_cols":1,"rows_kept":1,"cut":false,"hidden":true,"merged":[]}
["NHẬP TÊN SHEET TẠI ĐÂY"]

{"sheet":"CUS02","index":14,"n_rows":1,"n_cols":1,"rows_kept":1,"cut":false,"hidden":true,"merged":[]}
["NHẬP TÊN SHEET TẠI ĐÂY"]

{"sheet":"CUS01","index":15,"n_rows":1,"n_cols":1,"rows_kept":1,"cut":false,"hidden":true,"merged":[]}
["NHẬP TÊN SHEET TẠI ĐÂY"]

{"sheet":"BCQT","index":16,"n_rows":125,"n_cols":85,"rows_kept":125,"cut":false,"hidden":false,"merged":[]}
[null,null,null,null,null,null,null,"Chi nhánh/ Công ty con:",null,null,null,null,null,null,null,null,null,null,null,null,{"$f":"IF(I1=\"\",\"\",MATCH(I1,SOPHIEU,0))","v":""}]
[null,null,"2021-02-01","2021-11-24"]
[]
[null,null,"BÁO CÁO QUẢN TRỊ"]
[null,null,{"$f":"\"Từ ngày: \"&TEXT(BCQT_START,\"dd-mm-yyyy\")&\" - Đến ngày: \"& TEXT(BCQT_END,\"dd-mm-yyyy\")","v":"Từ ngày: 01-02-2021 - Đến ngày: 24-11-2021"}]
[]
[]
[null,null,{"$f":"L21","v":"THU"},{"$f":"L22","v":0}]
[null,null,{"$f":"M21","v":"CHI"},{"$f":"M22","v":0}]
[]
[]
[]
[]
[]
[]
[]
[]
[]
[]
[null,null,"BÁO CÁO TỔNG HỢP DOANH THU",null,null,"BÁO CÁO TỔNG HỢP CHI PHÍ",null,null,"BÁO CÁO TỔNG HỢP THU CHI QUỸ",null,null,null,null,"Đơn vị tính: VNĐ"]
[null,null,"TÊN DOANH THU","TRONG KỲ",null,"TÊN CHI PHÍ","TRONG KỲ",null,"SỐ TK","TÊN TK","TỒN ĐẦU QUỸ","THU","CHI","TỒN CUỐI",null,"CHI NHÁNH/ CÔNG TY CON","SỐ TIỀN THU","SỐ TIỀN CHI"]
[null,null,"TỔNG",{"$f":"SUM(D23:D126)","v":0},null,"TỔNG",{"$f":"SUM(G23:G126)","v":0},null,"TỔNG",null,{"$f":"SUM(K23:K127)","v":0},{"$f":"SUM(L23:L127)","v":0},{"$f":"SUM(M23:M127)","v":0},{"$f":"SUM(N23:N127)","v":0},null,"TỔNG",{"$f":"SUM(Q23:Q45)","v":0},{"$f":"SUM(R23:R45)","v":0},null,null,null,null,null,null,null,null,null,null,null,null,null,null,null,null,null,null,"TK","Số tiền"]
[null,null,null,0,null,null,0,null,null,null,0,0,0,0,null,null,0,0,null,null,null,null,null,null,null,null,null,null,null,null,null,null,null,null,null,null,null,0,null,null,null,null,null,null,null,null,null,null,null,null,null,null,null,null,null,null,null,null,null,null,null,null,null,null,null,null,null,null,null,null,null,null,null,null,null,null,null,null,null,null,null,0,0,null,0]
[null,null,null,0,null,null,0,null,null,null,0,0,0,0,null,null,0,0,null,null,null,null,null,null,null,null,null,null,null,null,null,null,null,null,null,null,null,0,null,null,null,null,null,null,null,null,null,null,null,null,null,null,null,null,null,null,null,null,null,null,null,null,null,null,null,null,null,null,null,null,null,null,null,null,null,null,null,null,null,null,null,0,0,null,0]
[null,null,null,0,null,null,0,null,null,null,0,0,0,0,null,null,0,0,null,null,null,null,null,null,null,null,null,null,null,null,null,null,null,null,null,null,null,0,null,null,null,null,null,null,null,null,null,null,null,null,null,null,null,null,null,null,null,null,null,null,null,null,null,null,null,null,null,null,null,null,null,null,null,null,null,null,null,null,null,null,null,0,0,null,0]
[null,null,null,0,null,null,0,null,null,null,0,0,0,0,null,null,0,0,null,null,null,null,null,null,null,null,null,null,null,null,null,null,null,null,null,null,null,0,null,null,null,null,null,null,null,null,null,null,null,null,null,null,null,null,null,null,null,null,null,null,null,null,null,null,null,null,null,null,null,null,null,null,null,null,null,null,null,null,null,null,null,0,0,null,0]
[null,null,null,0,null,null,0,null,null,null,0,0,0,0,null,null,0,0,null,null,null,null,null,null,null,null,null,null,null,null,null,null,null,null,null,null,null,0,null,null,null,null,null,null,null,null,null,null,null,null,null,null,null,null,null,null,null,null,null,null,null,null,null,null,null,null,null,null,null,null,null,null,null,null,null,null,null,null,null,null,null,0,0,null,0]
[null,null,null,0,null,null,0,null,null,null,0,0,0,0,null,null,0,0,null,null,null,null,null,null,null,null,null,null,null,null,null,null,null,null,null,null,null,0,null,null,null,null,null,null,null,null,null,null,null,null,null,null,null,null,null,null,null,null,null,null,null,null,null,null,null,null,null,null,null,null,null,null,null,null,null,null,null,null,null,null,null,0,null,null,0]
[null,null,null,0,null,null,0,null,null,null,0,0,0,0,null,null,0,0,null,null,null,null,null,null,null,null,null,null,null,null,null,null,null,null,null,null,null,0,null,null,null,null,null,null,null,null,null,null,null,null,null,null,null,null,null,null,null,null,null,null,null,null,null,null,null,null,null,null,null,null,null,null,null,null,null,null,null,null,null,null,null,0,null,null,0]
[null,null,null,0,null,null,0,null,null,null,0,0,0,0,null,null,0,0,null,null,null,null,null,null,null,null,null,null,null,null,null,null,null,null,null,null,null,0,null,null,null,null,null,null,null,null,null,null,null,null,null,null,null,null,null,null,null,null,null,null,null,null,null,null,null,null,null,null,null,null,null,null,null,null,null,null,null,null,null,null,null,0,null,null,0]
[null,null,null,0,null,null,0,null,null,null,0,0,0,0,null,null,0,0,null,null,null,null,null,null,null,null,null,null,null,null,null,null,null,null,null,null,null,0,null,null,null,null,null,null,null,null,null,null,null,null,null,null,null,null,null,null,null,null,null,null,null,null,null,null,null,null,null,null,null,null,null,null,null,null,null,null,null,null,null,null,null,0,null,null,0]
[null,null,null,0,null,null,0,null,null,null,0,0,0,0,null,null,0,0,null,null,null,null,null,null,null,null,null,null,null,null,null,null,null,null,null,null,null,0,null,null,null,null,null,null,null,null,null,null,null,null,null,null,null,null,null,null,null,null,null,null,null,null,null,null,null,null,null,null,null,null,null,null,null,null,null,null,null,null,null,null,null,0,null,null,0]
[null,null,null,0,null,null,0,null,null,null,0,0,0,0,null,null,0,0,null,null,null,null,null,null,null,null,null,null,null,null,null,null,null,null,null,null,null,0,null,null,null,null,null,null,null,null,null,null,null,null,null,null,null,null,null,null,null,null,null,null,null,null,null,null,null,null,null,null,null,null,null,null,null,null,null,null,null,null,null,null,null,0,null,null,0]
[null,null,null,0,null,null,0,null,null,null,0,0,0,0,null,null,0,0,null,null,null,null,null,null,null,null,null,null,null,null,null,null,null,null,null,null,null,0,null,null,null,null,null,null,null,null,null,null,null,null,null,null,null,null,null,null,null,null,null,null,null,null,null,null,null,null,null,null,null,null,null,null,null,null,null,null,null,null,null,null,null,0,null,null,0]
[null,null,null,0,null,null,0,null,null,null,0,0,0,0,null,null,0,0,null,null,null,null,null,null,null,null,null,null,null,null,null,null,null,null,null,null,null,0,null,null,null,null,null,null,null,null,null,null,null,null,null,null,null,null,null,null,null,null,null,null,null,null,null,null,null,null,null,null,null,null,null,null,null,null,null,null,null,null,null,null,null,0,null,null,0]
[null,null,null,0,null,null,0,null,null,null,0,0,0,0,null,null,0,0,null,null,null,null,null,null,null,null,null,null,null,null,null,null,null,null,null,null,null,0,null,null,null,null,null,null,null,null,null,null,null,null,null,null,null,null,null,null,null,null,null,null,null,null,null,null,null,null,null,null,null,null,null,null,null,null,null,null,null,null,null,null,null,0,null,null,0]
[null,null,null,0,null,null,0,null,null,null,0,0,0,0,null,null,0,0,null,null,null,null,null,null,null,null,null,null,null,null,null,null,null,null,null,null,null,0,null,null,null,null,null,null,null,null,null,null,null,null,null,null,null,null,null,null,null,null,null,null,null,null,null,null,null,null,null,null,null,null,null,null,null,null,null,null,null,null,null,null,null,0,null,null,0]
[null,null,null,0,null,null,0,null,null,null,0,0,0,0,null,null,0,0,null,null,null,null,null,null,null,null,null,null,null,null,null,null,null,null,null,null,null,0,null,null,null,null,null,null,null,null,null,null,null,null,null,null,null,null,null,null,null,null,null,null,null,null,null,null,null,null,null,null,null,null,null,null,null,null,null,null,null,null,null,null,null,0,null,null,0]
[null,null,null,0,null,null,0,null,null,null,0,0,0,0,null,null,0,0,null,null,null,null,null,null,null,null,null,null,null,null,null,null,null,null,null,null,null,0,null,null,null,null,null,null,null,null,null,null,null,null,null,null,null,null,null,null,null,null,null,null,null,null,null,null,null,null,null,null,null,null,null,null,null,null,null,null,null,null,null,null,null,0,null,null,0]
[null,null,null,0,null,null,0,null,null,null,0,0,0,0,null,null,0,0,null,null,null,null,null,null,null,null,null,null,null,null,null,null,null,null,null,null,null,0,null,null,null,null,null,null,null,null,null,null,null,null,null,null,null,null,null,null,null,null,null,null,null,null,null,null,null,null,null,null,null,null,null,null,null,null,null,null,null,null,null,null,null,0,null,null,0]
[null,null,null,0,null,null,0,null,null,null,0,0,0,0,null,null,0,0,null,null,null,null,null,null,null,null,null,null,null,null,null,null,null,null,null,null,null,0,null,null,null,null,null,null,null,null,null,null,null,null,null,null,null,null,null,null,null,null,null,null,null,null,null,null,null,null,null,null,null,null,null,null,null,null,null,null,null,null,null,null,null,0,null,null,0]
[null,null,null,0,null,null,0,null,null,null,0,0,0,0,null,null,0,0,null,null,null,null,null,null,null,null,null,null,null,null,null,null,null,null,null,null,null,0,null,null,null,null,null,null,null,null,null,null,null,null,null,null,null,null,null,null,null,null,null,null,null,null,null,null,null,null,null,null,null,null,null,null,null,null,null,null,null,null,null,null,null,0,null,null,0]
[null,null,null,0,null,null,0,null,null,null,0,0,0,0,null,null,0,0,null,null,null,null,null,null,null,null,null,null,null,null,null,null,null,null,null,null,null,0,null,null,null,null,null,null,null,null,null,null,null,null,null,null,null,null,null,null,null,null,null,null,null,null,null,null,null,null,null,null,null,null,null,null,null,null,null,null,null,null,null,null,null,0,null,null,0]
[null,null,null,0,null,null,0,null,null,null,0,0,0,0,null,null,0,0,null,null,null,null,null,null,null,null,null,null,null,null,null,null,null,null,null,null,null,0,null,null,null,null,null,null,null,null,null,null,null,null,null,null,null,null,null,null,null,null,null,null,null,null,null,null,null,null,null,null,null,null,null,null,null,null,null,null,null,null,null,null,null,0,null,null,0]
[null,null,null,0,null,null,0,null,null,null,0,0,0,0,null,null,0,0,null,null,null,null,null,null,null,null,null,null,null,null,null,null,null,null,null,null,null,0,null,null,null,null,null,null,null,null,null,null,null,null,null,null,null,null,null,null,null,null,null,null,null,null,null,null,null,null,null,null,null,null,null,null,null,null,null,null,null,null,null,null,null,0,null,null,0]
[null,null,null,0,null,null,0,null,null,null,0,0,0,0,null,null,0,0,null,null,null,null,null,null,null,null,null,null,null,null,null,null,null,null,null,null,null,0,null,null,null,null,null,null,null,null,null,null,null,null,null,null,null,null,null,null,null,null,null,null,null,null,null,null,null,null,null,null,null,null,null,null,null,null,null,null,null,null,null,null,null,0,null,null,0]
[null,null,null,0,null,null,0,null,null,null,0,0,0,0,null,null,0,0,null,null,null,null,null,null,null,null,null,null,null,null,null,null,null,null,null,null,null,0,null,null,null,null,null,null,null,null,null,null,null,null,null,null,null,null,null,null,null,null,null,null,null,null,null,null,null,null,null,null,null,null,null,null,null,null,null,null,null,null,null,null,null,0,null,null,0]
[null,null,null,0,null,null,0,null,null,null,0,0,0,0,null,null,0,0,null,null,null,null,null,null,null,null,null,null,null,null,null,null,null,null,null,null,null,0,null,null,null,null,null,null,null,null,null,null,null,null,null,null,null,null,null,null,null,null,null,null,null,null,null,null,null,null,null,null,null,null,null,null,null,null,null,null,null,null,null,null,null,0,null,null,0]
[null,null,null,0,null,null,0,null,null,null,0,0,0,0,null,null,0,0,null,null,null,null,null,null,null,null,null,null,null,null,null,null,null,null,null,null,null,0,null,null,null,null,null,null,null,null,null,null,null,null,null,null,null,null,null,null,null,null,null,null,null,null,null,null,null,null,null,null,null,null,null,null,null,null,null,null,null,null,null,null,null,0,null,null,0]
[null,null,null,0,null,null,0,null,null,null,0,0,0,0,null,null,0,0,null,null,null,null,null,null,null,null,null,null,null,null,null,null,null,null,null,null,null,0,null,null,null,null,null,null,null,null,null,null,null,null,null,null,null,null,null,null,null,null,null,null,null,null,null,null,null,null,null,null,null,null,null,null,null,null,null,null,null,null,null,null,null,0,null,null,0]
[null,null,null,0,null,null,0,null,null,null,0,0,0,0,null,null,0,0,null,null,null,null,null,null,null,null,null,null,null,null,null,null,null,null,null,null,null,0,null,null,null,null,null,null,null,null,null,null,null,null,null,null,null,null,null,null,null,null,null,null,null,null,null,null,null,null,null,null,null,null,null,null,null,null,null,null,null,null,null,null,null,0,null,null,0]
[null,null,null,0,null,null,0,null,null,null,0,0,0,0,null,null,0,0,null,null,null,null,null,null,null,null,null,null,null,null,null,null,null,null,null,null,null,0,null,null,null,null,null,null,null,null,null,null,null,null,null,null,null,null,null,null,null,null,null,null,null,null,null,null,null,null,null,null,null,null,null,null,null,null,null,null,null,null,null,null,null,0,null,null,0]
[null,null,null,0,null,null,0,null,null,null,0,0,0,0,null,null,0,0,null,null,null,null,null,null,null,null,null,null,null,null,null,null,null,null,null,null,null,0,null,null,null,null,null,null,null,null,null,null,null,null,null,null,null,null,null,null,null,null,null,null,null,null,null,null,null,null,null,null,null,null,null,null,null,null,null,null,null,null,null,null,null,0,null,null,0]
[null,null,null,0,null,null,0,null,null,null,0,0,0,0,null,null,0,0,null,null,null,null,null,null,null,null,null,null,null,null,null,null,null,null,null,null,null,0,null,null,null,null,null,null,null,null,null,null,null,null,null,null,null,null,null,null,null,null,null,null,null,null,null,null,null,null,null,null,null,null,null,null,null,null,null,null,null,null,null,null,null,0,null,null,0]
[null,null,null,0,null,null,0,null,null,null,0,0,0,0,null,null,0,0,null,null,null,null,null,null,null,null,null,null,null,null,null,null,null,null,null,null,null,0,null,null,null,null,null,null,null,null,null,null,null,null,null,null,null,null,null,null,null,null,null,null,null,null,null,null,null,null,null,null,null,null,null,null,null,null,null,null,null,null,null,null,null,0,null,null,0]
[null,null,null,0,null,null,0,null,null,null,0,0,0,0,null,null,0,0,null,null,null,null,null,null,null,null,null,null,null,null,null,null,null,null,null,null,null,0,null,null,null,null,null,null,null,null,null,null,null,null,null,null,null,null,null,null,null,null,null,null,null,null,null,null,null,null,null,null,null,null,null,null,null,null,null,null,null,null,null,null,null,0,null,null,0]
[null,null,null,0,null,null,0,null,null,null,0,0,0,0,null,null,0,0,null,null,null,null,null,null,null,null,null,null,null,null,null,null,null,null,null,null,null,0,null,null,null,null,null,null,null,null,null,null,null,null,null,null,null,null,null,null,null,null,null,null,null,null,null,null,null,null,null,null,null,null,null,null,null,null,null,null,null,null,null,null,null,0,null,null,0]
[null,null,null,0,null,null,0,null,null,null,0,0,0,0,null,null,0,0,null,null,null,null,null,null,null,null,null,null,null,null,null,null,null,null,null,null,null,0,null,null,null,null,null,null,null,null,null,null,null,null,null,null,null,null,null,null,null,null,null,null,null,null,null,null,null,null,null,null,null,null,null,null,null,null,null,null,null,null,null,null,null,0,null,null,0]
[null,null,null,0,null,null,0,null,null,null,0,0,0,0,null,null,0,0,null,null,null,null,null,null,null,null,null,null,null,null,null,null,null,null,null,null,null,0,null,null,null,null,null,null,null,null,null,null,null,null,null,null,null,null,null,null,null,null,null,null,null,null,null,null,null,null,null,null,null,null,null,null,null,null,null,null,null,null,null,null,null,0,null,null,0]
[null,null,null,0,null,null,0,null,null,null,0,0,0,0,null,null,0,0,null,null,null,null,null,null,null,null,null,null,null,null,null,null,null,null,null,null,null,0,null,null,null,null,null,null,null,null,null,null,null,null,null,null,null,null,null,null,null,null,null,null,null,null,null,null,null,null,null,null,null,null,null,null,null,null,null,null,null,null,null,null,null,0,null,null,0]
[null,null,null,0,null,null,0,null,null,null,0,0,0,0,null,null,0,0,null,null,null,null,null,null,null,null,null,null,null,null,null,null,null,null,null,null,null,0,null,null,null,null,null,null,null,null,null,null,null,null,null,null,null,null,null,null,null,null,null,null,null,null,null,null,null,null,null,null,null,null,null,null,null,null,null,null,null,null,null,null,null,0,null,null,0]
[null,null,null,0,null,null,0,null,null,null,0,0,0,0,null,null,0,0,null,null,null,null,null,null,null,null,null,null,null,null,null,null,null,null,null,null,null,0,null,null,null,null,null,null,null,null,null,null,null,null,null,null,null,null,null,null,null,null,null,null,null,null,null,null,null,null,null,null,null,null,null,null,null,null,null,null,null,null,null,null,null,0,null,null,0]
[null,null,null,0,null,null,0,null,null,null,0,0,0,0,null,null,0,0,null,null,null,null,null,null,null,null,null,null,null,null,null,null,null,null,null,null,null,0,null,null,null,null,null,null,null,null,null,null,null,null,null,null,null,null,null,null,null,null,null,null,null,null,null,null,null,null,null,null,null,null,null,null,null,null,null,null,null,null,null,null,null,0,null,null,0]
[null,null,null,0,null,null,0,null,null,null,0,0,0,0,null,null,0,0,null,null,null,null,null,null,null,null,null,null,null,null,null,null,null,null,null,null,null,0,null,null,null,null,null,null,null,null,null,null,null,null,null,null,null,null,null,null,null,null,null,null,null,null,null,null,null,null,null,null,null,null,null,null,null,null,null,null,null,null,null,null,null,0,null,null,0]
[null,null,null,0,null,null,0,null,null,null,0,0,0,0,null,null,0,0,null,null,null,null,null,null,null,null,null,null,null,null,null,null,null,null,null,null,null,0,null,null,null,null,null,null,null,null,null,null,null,null,null,null,null,null,null,null,null,null,null,null,null,null,null,null,null,null,null,null,null,null,null,null,null,null,null,null,null,null,null,null,null,0,null,null,0]
[null,null,null,0,null,null,0,null,null,null,0,0,0,0,null,null,0,0,null,null,null,null,null,null,null,null,null,null,null,null,null,null,null,null,null,null,null,0,null,null,null,null,null,null,null,null,null,null,null,null,null,null,null,null,null,null,null,null,null,null,null,null,null,null,null,null,null,null,null,null,null,null,null,null,null,null,null,null,null,null,null,0,null,null,0]
[null,null,null,0,null,null,0,null,null,null,0,0,0,0,null,null,0,0,null,null,null,null,null,null,null,null,null,null,null,null,null,null,null,null,null,null,null,0,null,null,null,null,null,null,null,null,null,null,null,null,null,null,null,null,null,null,null,null,null,null,null,null,null,null,null,null,null,null,null,null,null,null,null,null,null,null,null,null,null,null,null,0,null,null,0]
[null,null,null,0,null,null,0,null,null,null,0,0,0,0,null,null,0,0,null,null,null,null,null,null,null,null,null,null,null,null,null,null,null,null,null,null,null,0,null,null,null,null,null,null,null,null,null,null,null,null,null,null,null,null,null,null,null,null,null,null,null,null,null,null,null,null,null,null,null,null,null,null,null,null,null,null,null,null,null,null,null,0,null,null,0]
[null,null,null,0,null,null,0,null,null,null,0,0,0,0,null,null,0,0,null,null,null,null,null,null,null,null,null,null,null,null,null,null,null,null,null,null,null,0,null,null,null,null,null,null,null,null,null,null,null,null,null,null,null,null,null,null,null,null,null,null,null,null,null,null,null,null,null,null,null,null,null,null,null,null,null,null,null,null,null,null,null,0,null,null,0]
[null,null,null,0,null,null,0,null,null,null,0,0,0,0,null,null,0,0,null,null,null,null,null,null,null,null,null,null,null,null,null,null,null,null,null,null,null,0,null,null,null,null,null,null,null,null,null,null,null,null,null,null,null,null,null,null,null,null,null,null,null,null,null,null,null,null,null,null,null,null,null,null,null,null,null,null,null,null,null,null,null,0,null,null,0]
[null,null,null,0,null,null,0,null,null,null,0,0,0,0,null,null,0,0,null,null,null,null,null,null,null,null,null,null,null,null,null,null,null,null,null,null,null,0,null,null,null,null,null,null,null,null,null,null,null,null,null,null,null,null,null,null,null,null,null,null,null,null,null,null,null,null,null,null,null,null,null,null,null,null,null,null,null,null,null,null,null,0,null,null,0]
[null,null,null,0,null,null,0,null,null,null,0,0,0,0,null,null,0,0,null,null,null,null,null,null,null,null,null,null,null,null,null,null,null,null,null,null,null,0,null,null,null,null,null,null,null,null,null,null,null,null,null,null,null,null,null,null,null,null,null,null,null,null,null,null,null,null,null,null,null,null,null,null,null,null,null,null,null,null,null,null,null,0,null,null,0]
[null,null,null,0,null,null,0,null,null,null,0,0,0,0,null,null,0,0,null,null,null,null,null,null,null,null,null,null,null,null,null,null,null,null,null,null,null,0,null,null,null,null,null,null,null,null,null,null,null,null,null,null,null,null,null,null,null,null,null,null,null,null,null,null,null,null,null,null,null,null,null,null,null,null,null,null,null,null,null,null,null,0,null,null,0]
[null,null,null,0,null,null,0,null,null,null,0,0,0,0,null,null,0,0,null,null,null,null,null,null,null,null,null,null,null,null,null,null,null,null,null,null,null,0,null,null,null,null,null,null,null,null,null,null,null,null,null,null,null,null,null,null,null,null,null,null,null,null,null,null,null,null,null,null,null,null,null,null,null,null,null,null,null,null,null,null,null,0,null,null,0]
[null,null,null,0,null,null,0,null,null,null,0,0,0,0,null,null,0,0,null,null,null,null,null,null,null,null,null,null,null,null,null,null,null,null,null,null,null,0,null,null,null,null,null,null,null,null,null,null,null,null,null,null,null,null,null,null,null,null,null,null,null,null,null,null,null,null,null,null,null,null,null,null,null,null,null,null,null,null,null,null,null,0,null,null,0]
[null,null,null,0,null,null,0,null,null,null,0,0,0,0,null,null,0,0,null,null,null,null,null,null,null,null,null,null,null,null,null,null,null,null,null,null,null,0,null,null,null,null,null,null,null,null,null,null,null,null,null,null,null,null,null,null,null,null,null,null,null,null,null,null,null,null,null,null,null,null,null,null,null,null,null,null,null,null,null,null,null,0,null,null,0]
[null,null,null,0,null,null,0,null,null,null,0,0,0,0,null,null,0,0,null,null,null,null,null,null,null,null,null,null,null,null,null,null,null,null,null,null,null,0,null,null,null,null,null,null,null,null,null,null,null,null,null,null,null,null,null,null,null,null,null,null,null,null,null,null,null,null,null,null,null,null,null,null,null,null,null,null,null,null,null,null,null,0,null,null,0]
[null,null,null,0,null,null,0,null,null,null,0,0,0,0,null,null,0,0,null,null,null,null,null,null,null,null,null,null,null,null,null,null,null,null,null,null,null,0,null,null,null,null,null,null,null,null,null,null,null,null,null,null,null,null,null,null,null,null,null,null,null,null,null,null,null,null,null,null,null,null,null,null,null,null,null,null,null,null,null,null,null,0,null,null,0]
[null,null,null,0,null,null,0,null,null,null,0,0,0,0,null,null,0,0,null,null,null,null,null,null,null,null,null,null,null,null,null,null,null,null,null,null,null,0,null,null,null,null,null,null,null,null,null,null,null,null,null,null,null,null,null,null,null,null,null,null,null,null,null,null,null,null,null,null,null,null,null,null,null,null,null,null,null,null,null,null,null,0,null,null,0]
[null,null,null,0,null,null,0,null,null,null,0,0,0,0,null,null,0,0,null,null,null,null,null,null,null,null,null,null,null,null,null,null,null,null,null,null,null,0,null,null,null,null,null,null,null,null,null,null,null,null,null,null,null,null,null,null,null,null,null,null,null,null,null,null,null,null,null,null,null,null,null,null,null,null,null,null,null,null,null,null,null,0,null,null,0]
[null,null,null,0,null,null,0,null,null,null,0,0,0,0,null,null,0,0,null,null,null,null,null,null,null,null,null,null,null,null,null,null,null,null,null,null,null,0,null,null,null,null,null,null,null,null,null,null,null,null,null,null,null,null,null,null,null,null,null,null,null,null,null,null,null,null,null,null,null,null,null,null,null,null,null,null,null,null,null,null,null,0,null,null,0]
[null,null,null,0,null,null,0,null,null,null,0,0,0,0,null,null,0,0,null,null,null,null,null,null,null,null,null,null,null,null,null,null,null,null,null,null,null,0,null,null,null,null,null,null,null,null,null,null,null,null,null,null,null,null,null,null,null,null,null,null,null,null,null,null,null,null,null,null,null,null,null,null,null,null,null,null,null,null,null,null,null,0,null,null,0]
[null,null,null,0,null,null,0,null,null,null,0,0,0,0,null,null,0,0,null,null,null,null,null,null,null,null,null,null,null,null,null,null,null,null,null,null,null,0,null,null,null,null,null,null,null,null,null,null,null,null,null,null,null,null,null,null,null,null,null,null,null,null,null,null,null,null,null,null,null,null,null,null,null,null,null,null,null,null,null,null,null,0,null,null,0]
[null,null,null,0,null,null,0,null,null,null,0,0,0,0,null,null,0,0,null,null,null,null,null,null,null,null,null,null,null,null,null,null,null,null,null,null,null,0,null,null,null,null,null,null,null,null,null,null,null,null,null,null,null,null,null,null,null,null,null,null,null,null,null,null,null,null,null,null,null,null,null,null,null,null,null,null,null,null,null,null,null,0,null,null,0]
[null,null,null,0,null,null,0,null,null,null,0,0,0,0,null,null,0,0,null,null,null,null,null,null,null,null,null,null,null,null,null,null,null,null,null,null,null,0,null,null,null,null,null,null,null,null,null,null,null,null,null,null,null,null,null,null,null,null,null,null,null,null,null,null,null,null,null,null,null,null,null,null,null,null,null,null,null,null,null,null,null,0,null,null,0]
[null,null,null,0,null,null,0,null,null,null,0,0,0,0,null,null,0,0,null,null,null,null,null,null,null,null,null,null,null,null,null,null,null,null,null,null,null,0,null,null,null,null,null,null,null,null,null,null,null,null,null,null,null,null,null,null,null,null,null,null,null,null,null,null,null,null,null,null,null,null,null,null,null,null,null,null,null,null,null,null,null,0,null,null,0]
[null,null,null,0,null,null,0,null,null,null,0,0,0,0,null,null,0,0,null,null,null,null,null,null,null,null,null,null,null,null,null,null,null,null,null,null,null,0,null,null,null,null,null,null,null,null,null,null,null,null,null,null,null,null,null,null,null,null,null,null,null,null,null,null,null,null,null,null,null,null,null,null,null,null,null,null,null,null,null,null,null,0,null,null,0]
[null,null,null,0,null,null,0,null,null,null,0,0,0,0,null,null,0,0,null,null,null,null,null,null,null,null,null,null,null,null,null,null,null,null,null,null,null,0,null,null,null,null,null,null,null,null,null,null,null,null,null,null,null,null,null,null,null,null,null,null,null,null,null,null,null,null,null,null,null,null,null,null,null,null,null,null,null,null,null,null,null,0,null,null,0]
[null,null,null,0,null,null,0,null,null,null,0,0,0,0,null,null,0,0,null,null,null,null,null,null,null,null,null,null,null,null,null,null,null,null,null,null,null,0,null,null,null,null,null,null,null,null,null,null,null,null,null,null,null,null,null,null,null,null,null,null,null,null,null,null,null,null,null,null,null,null,null,null,null,null,null,null,null,null,null,null,null,0,null,null,0]
[null,null,null,0,null,null,0,null,null,null,0,0,0,0,null,null,0,0,null,null,null,null,null,null,null,null,null,null,null,null,null,null,null,null,null,null,null,0,null,null,null,null,null,null,null,null,null,null,null,null,null,null,null,null,null,null,null,null,null,null,null,null,null,null,null,null,null,null,null,null,null,null,null,null,null,null,null,null,null,null,null,0,null,null,0]
[null,null,null,0,null,null,0,null,null,null,0,0,0,0,null,null,0,0,null,null,null,null,null,null,null,null,null,null,null,null,null,null,null,null,null,null,null,0,null,null,null,null,null,null,null,null,null,null,null,null,null,null,null,null,null,null,null,null,null,null,null,null,null,null,null,null,null,null,null,null,null,null,null,null,null,null,null,null,null,null,null,0,null,null,0]
[null,null,null,0,null,null,0,null,null,null,0,0,0,0,null,null,0,0,null,null,null,null,null,null,null,null,null,null,null,null,null,null,null,null,null,null,null,0,null,null,null,null,null,null,null,null,null,null,null,null,null,null,null,null,null,null,null,null,null,null,null,null,null,null,null,null,null,null,null,null,null,null,null,null,null,null,null,null,null,null,null,0,null,null,0]
[null,null,null,0,null,null,0,null,null,null,0,0,0,0,null,null,0,0,null,null,null,null,null,null,null,null,null,null,null,null,null,null,null,null,null,null,null,0,null,null,null,null,null,null,null,null,null,null,null,null,null,null,null,null,null,null,null,null,null,null,null,null,null,null,null,null,null,null,null,null,null,null,null,null,null,null,null,null,null,null,null,0,null,null,0]
[null,null,null,0,null,null,0,null,null,null,0,0,0,0,null,null,0,0,null,null,null,null,null,null,null,null,null,null,null,null,null,null,null,null,null,null,null,0,null,null,null,null,null,null,null,null,null,null,null,null,null,null,null,null,null,null,null,null,null,null,null,null,null,null,null,null,null,null,null,null,null,null,null,null,null,null,null,null,null,null,null,0,null,null,0]
[null,null,null,0,null,null,0,null,null,null,0,0,0,0,null,null,0,0,null,null,null,null,null,null,null,null,null,null,null,null,null,null,null,null,null,null,null,0,null,null,null,null,null,null,null,null,null,null,null,null,null,null,null,null,null,null,null,null,null,null,null,null,null,null,null,null,null,null,null,null,null,null,null,null,null,null,null,null,null,null,null,0,null,null,0]
[null,null,null,0,null,null,0,null,null,null,0,0,0,0,null,null,0,0,null,null,null,null,null,null,null,null,null,null,null,null,null,null,null,null,null,null,null,0,null,null,null,null,null,null,null,null,null,null,null,null,null,null,null,null,null,null,null,null,null,null,null,null,null,null,null,null,null,null,null,null,null,null,null,null,null,null,null,null,null,null,null,0,null,null,0]
[null,null,null,0,null,null,0,null,null,null,0,0,0,0,null,null,0,0,null,null,null,null,null,null,null,null,null,null,null,null,null,null,null,null,null,null,null,0,null,null,null,null,null,null,null,null,null,null,null,null,null,null,null,null,null,null,null,null,null,null,null,null,null,null,null,null,null,null,null,null,null,null,null,null,null,null,null,null,null,null,null,0,null,null,0]
[null,null,null,0,null,null,0,null,null,null,0,0,0,0,null,null,0,0,null,null,null,null,null,null,null,null,null,null,null,null,null,null,null,null,null,null,null,0,null,null,null,null,null,null,null,null,null,null,null,null,null,null,null,null,null,null,null,null,null,null,null,null,null,null,null,null,null,null,null,null,null,null,null,null,null,null,null,null,null,null,null,0,null,null,0]
[null,null,null,0,null,null,0,null,null,null,0,0,0,0,null,null,0,0,null,null,null,null,null,null,null,null,null,null,null,null,null,null,null,null,null,null,null,0,null,null,null,null,null,null,null,null,null,null,null,null,null,null,null,null,null,null,null,null,null,null,null,null,null,null,null,null,null,null,null,null,null,null,null,null,null,null,null,null,null,null,null,0,null,null,0]
[null,null,null,0,null,null,0,null,null,null,0,0,0,0,null,null,0,0,null,null,null,null,null,null,null,null,null,null,null,null,null,null,null,null,null,null,null,0,null,null,null,null,null,null,null,null,null,null,null,null,null,null,null,null,null,null,null,null,null,null,null,null,null,null,null,null,null,null,null,null,null,null,null,null,null,null,null,null,null,null,null,0,null,null,0]
[null,null,null,0,null,null,0,null,null,null,0,0,0,0,null,null,0,0,null,null,null,null,null,null,null,null,null,null,null,null,null,null,null,null,null,null,null,0,null,null,null,null,null,null,null,null,null,null,null,null,null,null,null,null,null,null,null,null,null,null,null,null,null,null,null,null,null,null,null,null,null,null,null,null,null,null,null,null,null,null,null,0,null,null,0]
[null,null,null,0,null,null,0,null,null,null,0,0,0,0,null,null,0,0,null,null,null,null,null,null,null,null,null,null,null,null,null,null,null,null,null,null,null,0,null,null,null,null,null,null,null,null,null,null,null,null,null,null,null,null,null,null,null,null,null,null,null,null,null,null,null,null,null,null,null,null,null,null,null,null,null,null,null,null,null,null,null,0,null,null,0]
[null,null,null,0,null,null,0,null,null,null,0,0,0,0,null,null,0,0,null,null,null,null,null,null,null,null,null,null,null,null,null,null,null,null,null,null,null,0,null,null,null,null,null,null,null,null,null,null,null,null,null,null,null,null,null,null,null,null,null,null,null,null,null,null,null,null,null,null,null,null,null,null,null,null,null,null,null,null,null,null,null,0,null,null,0]
[null,null,null,0,null,null,0,null,null,null,0,0,0,0,null,null,0,0,null,null,null,null,null,null,null,null,null,null,null,null,null,null,null,null,null,null,null,0,null,null,null,null,null,null,null,null,null,null,null,null,null,null,null,null,null,null,null,null,null,null,null,null,null,null,null,null,null,null,null,null,null,null,null,null,null,null,null,null,null,null,null,0,null,null,0]
[null,null,null,0,null,null,0,null,null,null,0,0,0,0,null,null,0,0,null,null,null,null,null,null,null,null,null,null,null,null,null,null,null,null,null,null,null,0,null,null,null,null,null,null,null,null,null,null,null,null,null,null,null,null,null,null,null,null,null,null,null,null,null,null,null,null,null,null,null,null,null,null,null,null,null,null,null,null,null,null,null,0,null,null,0]
[null,null,null,0,null,null,0,null,null,null,0,0,0,0,null,null,0,0,null,null,null,null,null,null,null,null,null,null,null,null,null,null,null,null,null,null,null,0,null,null,null,null,null,null,null,null,null,null,null,null,null,null,null,null,null,null,null,null,null,null,null,null,null,null,null,null,null,null,null,null,null,null,null,null,null,null,null,null,null,null,null,0,null,null,0]
[null,null,null,0,null,null,0,null,null,null,0,0,0,0,null,null,0,0,null,null,null,null,null,null,null,null,null,null,null,null,null,null,null,null,null,null,null,0,null,null,null,null,null,null,null,null,null,null,null,null,null,null,null,null,null,null,null,null,null,null,null,null,null,null,null,null,null,null,null,null,null,null,null,null,null,null,null,null,null,null,null,0,null,null,0]
[null,null,null,0,null,null,0,null,null,null,0,0,0,0,null,null,0,0,null,null,null,null,null,null,null,null,null,null,null,null,null,null,null,null,null,null,null,0,null,null,null,null,null,null,null,null,null,null,null,null,null,null,null,null,null,null,null,null,null,null,null,null,null,null,null,null,null,null,null,null,null,null,null,null,null,null,null,null,null,null,null,0,null,null,0]
[null,null,null,0,null,null,0,null,null,null,0,0,0,0,null,null,0,0,null,null,null,null,null,null,null,null,null,null,null,null,null,null,null,null,null,null,null,0,null,null,null,null,null,null,null,null,null,null,null,null,null,null,null,null,null,null,null,null,null,null,null,null,null,null,null,null,null,null,null,null,null,null,null,null,null,null,null,null,null,null,null,0,null,null,0]
[null,null,null,0,null,null,0,null,null,null,0,0,0,0,null,null,0,0,null,null,null,null,null,null,null,null,null,null,null,null,null,null,null,null,null,null,null,0,null,null,null,null,null,null,null,null,null,null,null,null,null,null,null,null,null,null,null,null,null,null,null,null,null,null,null,null,null,null,null,null,null,null,null,null,null,null,null,null,null,null,null,0,null,null,0]
[null,null,null,0,null,null,0,null,null,null,0,0,0,0,null,null,0,0,null,null,null,null,null,null,null,null,null,null,null,null,null,null,null,null,null,null,null,0,null,null,null,null,null,null,null,null,null,null,null,null,null,null,null,null,null,null,null,null,null,null,null,null,null,null,null,null,null,null,null,null,null,null,null,null,null,null,null,null,null,null,null,0,null,null,0]
[null,null,null,0,null,null,0,null,null,null,0,0,0,0,null,null,0,0,null,null,null,null,null,null,null,null,null,null,null,null,null,null,null,null,null,null,null,0,null,null,null,null,null,null,null,null,null,null,null,null,null,null,null,null,null,null,null,null,null,null,null,null,null,null,null,null,null,null,null,null,null,null,null,null,null,null,null,null,null,null,null,0,null,null,0]
[null,null,null,0,null,null,0,null,null,null,0,0,0,0,null,null,0,0,null,null,null,null,null,null,null,null,null,null,null,null,null,null,null,null,null,null,null,0,null,null,null,null,null,null,null,null,null,null,null,null,null,null,null,null,null,null,null,null,null,null,null,null,null,null,null,null,null,null,null,null,null,null,null,null,null,null,null,null,null,null,null,0,null,null,0]
[null,null,null,0,null,null,0,null,null,null,0,0,0,0,null,null,0,0,null,null,null,null,null,null,null,null,null,null,null,null,null,null,null,null,null,null,null,0,null,null,null,null,null,null,null,null,null,null,null,null,null,null,null,null,null,null,null,null,null,null,null,null,null,null,null,null,null,null,null,null,null,null,null,null,null,null,null,null,null,null,null,0,null,null,0]
[null,null,null,0,null,null,0,null,null,null,0,0,0,0,null,null,0,0,null,null,null,null,null,null,null,null,null,null,null,null,null,null,null,null,null,null,null,0,null,null,null,null,null,null,null,null,null,null,null,null,null,null,null,null,null,null,null,null,null,null,null,null,null,null,null,null,null,null,null,null,null,null,null,null,null,null,null,null,null,null,null,0,null,null,0]
[null,null,null,0,null,null,0,null,null,null,0,0,0,0,null,null,0,0,null,null,null,null,null,null,null,null,null,null,null,null,null,null,null,null,null,null,null,0,null,null,null,null,null,null,null,null,null,null,null,null,null,null,null,null,null,null,null,null,null,null,null,null,null,null,null,null,null,null,null,null,null,null,null,null,null,null,null,null,null,null,null,0,null,null,0]
[null,null,null,0,null,null,0,null,null,null,0,0,0,0,null,null,0,0,null,null,null,null,null,null,null,null,null,null,null,null,null,null,null,null,null,null,null,0,null,null,null,null,null,null,null,null,null,null,null,null,null,null,null,null,null,null,null,null,null,null,null,null,null,null,null,null,null,null,null,null,null,null,null,null,null,null,null,null,null,null,null,0,null,null,0]
[null,null,null,0,null,null,0,null,null,null,0,0,0,0,null,null,0,0,null,null,null,null,null,null,null,null,null,null,null,null,null,null,null,null,null,null,null,0,null,null,null,null,null,null,null,null,null,null,null,null,null,null,null,null,null,null,null,null,null,null,null,null,null,null,null,null,null,null,null,null,null,null,null,null,null,null,null,null,null,null,null,0,null,null,0]
[null,null,null,0,null,null,0,null,null,null,0,0,0,0,null,null,0,0,null,null,null,null,null,null,null,null,null,null,null,null,null,null,null,null,null,null,null,0,null,null,null,null,null,null,null,null,null,null,null,null,null,null,null,null,null,null,null,null,null,null,null,null,null,null,null,null,null,null,null,null,null,null,null,null,null,null,null,null,null,null,null,0,null,null,0]
[null,null,null,0,null,null,0,null,null,null,0,0,0,0,null,null,0,0,null,null,null,null,null,null,null,null,null,null,null,null,null,null,null,null,null,null,null,0,null,null,null,null,null,null,null,null,null,null,null,null,null,null,null,null,null,null,null,null,null,null,null,null,null,null,null,null,null,null,null,null,null,null,null,null,null,null,null,null,null,null,null,0,null,null,0]
[null,null,null,0,null,null,0,null,null,null,0,0,0,0,null,null,0,0,null,null,null,null,null,null,null,null,null,null,null,null,null,null,null,null,null,null,null,0,null,null,null,null,null,null,null,null,null,null,null,null,null,null,null,null,null,null,null,null,null,null,null,null,null,null,null,null,null,null,null,null,null,null,null,null,null,null,null,null,null,null,null,0,null,null,0]
[null,null,null,0,null,null,0,null,null,null,0,0,0,0,null,null,0,0,null,null,null,null,null,null,null,null,null,null,null,null,null,null,null,null,null,null,null,0,null,null,null,null,null,null,null,null,null,null,null,null,null,null,null,null,null,null,null,null,null,null,null,null,null,null,null,null,null,null,null,null,null,null,null,null,null,null,null,null,null,null,null,0,null,null,0]
[null,null,null,0,null,null,0,null,null,null,0,0,0,0,null,null,0,0,null,null,null,null,null,null,null,null,null,null,null,null,null,null,null,null,null,null,null,0,null,null,null,null,null,null,null,null,null,null,null,null,null,null,null,null,null,null,null,null,null,null,null,null,null,null,null,null,null,null,null,null,null,null,null,null,null,null,null,null,null,null,null,0,null,null,0]
[null,null,null,0,null,null,0,null,null,null,0,0,0,0,null,null,0,0,null,null,null,null,null,null,null,null,null,null,null,null,null,null,null,null,null,null,null,0,null,null,null,null,null,null,null,null,null,null,null,null,null,null,null,null,null,null,null,null,null,null,null,null,null,null,null,null,null,null,null,null,null,null,null,null,null,null,null,null,null,null,null,0,null,null,0]
[null,null,null,0,null,null,0,null,null,null,0,0,0,0,null,null,0,0,null,null,null,null,null,null,null,null,null,null,null,null,null,null,null,null,null,null,null,0,null,null,null,null,null,null,null,null,null,null,null,null,null,null,null,null,null,null,null,null,null,null,null,null,null,null,null,null,null,null,null,null,null,null,null,null,null,null,null,null,null,null,null,0,null,null,0]

{"sheet":"SETUP","index":17,"n_rows":65,"n_cols":11,"rows_kept":65,"cut":false,"hidden":false,"merged":[]}
["Phiếu thu",null,"Loại phiếu",null,"Loại phiếu tự động","Url tải",null,null,null,null,"Bạn chưa nhập Ngày ghi sổ!"]
[null,null,null,null,1,"wpro.vn/file-excel-quan-ly-thu-chi/",null,null,null,null,"Bạn chưa nhập Ngày chứng từ!"]
["Số phiếu cuối",{"$f":"MAX(IFERROR(IF(LEFT(DATA!B1:B30008,2)=\"PT\",VALUE(RIGHT(DATA!B1:B30008,6))),0))","v":0},1,null,null,null,null,null,null,null,"Bạn chưa nhập Số chứng từ!"]
["Số phiếu mới-PTxxxxxx",{"$f":"IFERROR(IF(B3=\"CHỨNG TỪ\",\"PT000001\",\"PT\"&TEXT(B3+1,\"000000\")),\"Có Số chứng từ không đúng định dạng PTxxxxxx\")","v":"PT000001"},1,null,null,null,null,null,null,null,"Bạn chưa chọn tài khoản!"]
["Số phiếu cuối",{"$f":"MAX(IF(LEFT(DATA!B1:B30008,2)=\"PT\",IF(RIGHT(DATA!B1:B30008,4)=TEXT(NOW(),\"mmyy\"),VALUE(MID(DATA!B1:B30008,3,4)),0)))","v":0},2,null,null,null,null,null,null,null,"Số phiếu đã tồn tại, bạn có muốn lưu cập nhật không?"]
["Số phiếu mới-PTxxxxMMYY",{"$f":"IFERROR(IF(B5=\"CHỨNG TỪ\",\"PT0001-\"&TEXT(NOW(),\"mmyy\"),\"PT\"&TEXT(B5+1,\"0000\")&\"-\"&TEXT(NOW(),\"mmyy\")),\"Có Số chứng từ không đúng định dạng PTxxxxxx\")","v":"PT0001-0323"},2,null,null,null,null,null,null,null,"Lưu phiếu thành công!"]
[null,null,null,null,null,null,null,null,null,null,"Số phiếu không tồn tại"]
[null,null,null,null,{"$f":"VBAProject.cmd_ActivateDemo.idmay()","v":"A0E9B710"},null,null,null,null,null,"Máy chưa kích hoạt bản quyền để sử dụng."]
["Phiếu chi",null,null,null,null,null,null,null,null,null,"Đã quá giới hạn số máy được sử dụng miễn phí (2 máy). Bạn không mở được ở máy này."]
[null,null,null,null,null,null,null,null,null,null,"Có lỗi: Liên hệ webkynang.vn@gmail.com hoặc 038-997-8430"]
["Số phiếu cuối",{"$f":"MAX(IFERROR(IF(LEFT(DATA!B1:B30008,2)=\"PC\",VALUE(RIGHT(DATA!B1:B30008,6))),0))","v":0},1,null,null,null,null,null,null,null,"Khôi phục dữ liệu cũ thành công."]
["Số phiếu mới-PCxxxxxx",{"$f":"IFERROR(IF(B11=\"CHỨNG TỪ\",\"PC000001\",\"PC\"&TEXT(B11+1,\"000000\")),\"Có Số chứng từ không đúng định dạng PCxxxxxx\")","v":"PC000001"},1,null,null,null,null,null,null,null,"Đã quá giới hạn số lượng máy được phép sử dụng. Nếu bạn đang update phiên bản mới hãy chọn OK sau đó bạn chọn file phần mềm cũ đã có trên máy tính để kích hoạt phần mềm cho phiên bản cập nhật."]
["Số phiếu cuối",{"$f":"MAX(IF(LEFT(DATA!B1:B30008,2)=\"PC\",IF(RIGHT(DATA!B1:B30008,4)=TEXT(NOW(),\"mmyy\"),VALUE(MID(DATA!B1:B30008,3,4)),0)))","v":0},2,null,null,null,null,null,null,null,"Tính năng này không có trong gói ECO. Liên hệ: webkynang.vn@gmail.com để nâng cấp lên gói VIP."]
["Số phiếu mới-PCxxxxMMYY",{"$f":"IFERROR(IF(B13=\"CHỨNG TỪ\",\"PC0001-\"&TEXT(NOW(),\"mmyy\"),\"PC\"&TEXT(B13+1,\"0000\")&\"-\"&TEXT(NOW(),\"mmyy\")),\"Có Số chứng từ không đúng định dạng PTxxxxxx\")","v":"PC0001-0323"},2,null,null,null,null,null,null,null,"Bạn có muốn xóa dữ liệu?"]
[null,null,null,null,null,null,null,null,null,null,"Bạn đã xóa thành công!"]
["Convert txt to number",1,null,null,null,null,null,null,null,null,"Dữ liệu của bạn đã vượt quá giới hạn của gói phí bạn mua. Bạn nên tạo kỳ mới để sử dụng. Không nên tiếp tục lưu dữ liệu vào File hiện hành vì nó sẽ bị xóa khi xem báo cáo."]
[null,null,null,null,null,null,null,null,null,null,"Bạn không được tự ý đổi Logic đánh số phiếu tự động: PC/ PT + 6 chữ số"]
["Lựa chọn","Yes",null,null,null,null,null,null,null,null,"Ngày bạn vừa nhập có Năm khác với Năm hiện tại. Bạn nên kiểm tra lại, nếu sai ngày tháng thì bạn nhập lại theo thứ tự: Năm - Tháng - Ngày."]
[null,"No",null,null,null,null,null,null,null,null,"Ngày bạn vừa nhập có tháng khác với tháng hiện tại. Bạn nên kiểm tra lại, nếu sai ngày tháng thì bạn nhập lại theo thứ tự: Năm - Tháng - Ngày."]
[null,null,null,null,null,null,null,null,null,null,"NHẬP TÊN SHEET TẠI ĐÂY"]
[null,null,null,null,null,null,null,null,null,null,"Tính năng 'Sắp xếp Sổ chi tiết' không có trong gói phí bạn đã mua."]
[null,"CÁC TÍNH NĂNG NÀY CHỈ HOẠT ĐỘNG Ở GÓI VIP và PREMIUM",null,null,null,null,null,null,null,null,"Điều chuyển quỹ."]
[null,null,null,null,null,null,null,null,null,null,"TÍNH NĂNG LẬP KẾ HOẠCH VÀ QUẢN TRỊ NGÂN SÁCH DÒNG TIỀN CHỈ CÓ TRONG \"BẢN TRẢ PHÍ\"\n\n\nĐây là tính năng cho phép:\n\n- Lập kế hoạch chi tiết nhất các khoản dự kiến Thu và Chi trong tương lai\n\n- Ghi nhận thực tế đã thu và chi\n\n- Xem báo cáo tình hình thực hiện kế hoạch Thu và Chi\n\n- Quan trọng hơn cả đó là xem được báo cáo trong tương lai, Doanh nghiệp có đủ tiền để chi tiêu không.\n\n- Từ đó sẽ chủ động được kế hoạch Huy động vốn, Thu hồi nợ, Giãn nợ,... để không mất khả năng thanh toán trong ngắn hạn."]
[null,null,null,null,null,null,null,null,null,null,"TÍNH NĂNG QUẢN LÝ HỢP ĐỒNG/ CÔNG TRÌNH CHỈ CÓ TRONG \"BẢN TRẢ PHÍ\"\n\n\nĐây là tính năng cho phép:\n\n- Liệt kê danh sách các hợp đồng, công trình\n\n- Ghi nhận tổng giá trị của từng hợp đồng, công trình\n\n- Tự động tổng hợp số tiền đã thu của hợp đồng, công trình\n"]
["Tài khoản","ACB",null,null,null,null,null,null,null,null,"Bạn chưa chọn file dữ liệu cũ để khôi phục.\nHoặc có lỗi khác, bạn hãy liên hệ webkynang.vn@gmail.com nếu chọn file dữ liệu cũ rồi mà vẫn lỗi."]
["Ngày thu chi","2021-12-10",null,null,null,null,null,null,null,null,"CÁC TÍNH NĂNG DƯỚI ĐÂY CHỈ CÓ TRONG BẢN TRẢ PHÍ: VIP, PREMIUM"]
["Số dư",{"$f":"IFERROR(VLOOKUP(B25,DM!$A$6:$C$109,3,0)+SUMIFS(THU,NGAY_GHI,\"<\"&B26+1,NGUONTIEN,B25)-SUMIFS(CHI,NGAY_GHI,\"<\"&B26+1,NGUONTIEN,B25),0)","v":0},null,null,null,null,null,null,null,null,"Bạn đang tắt tính năng Tạo số phiếu tự động tại Cài đặt, do vậy tính năng này không hoạt động."]
[null,null,null,null,null,null,null,null,null,null,"Không tồn tại phiếu bạn muốn tới."]
[null,null,null,null,null,null,null,null,null,null,"Lưu thành công"]
["Ghi chú","GC_23",null,null,null,null,null,null,null,null,"Bạn có muốn đổi logic tạo chứng từ không vì việc này sẽ làm cho tính năng tự động tạo số chứng từ không hoạt động hoặc không chính xác khi đã có dữ liệu thu chi trước đó của kỳ hiện tại."]
[null,null,null,null,null,null,null,null,null,null,"Tính năng này chỉ hoạt động khi Logic số chứng từ tự động là PTxxxxxx, PCxxxxxx"]
[null,null,null,null,null,null,null,null,null,null,"Hết thời gian dùng thử"]
["Row giới hạn",8000,null,null,null,null,null,null,null,null,"Không có giao dịch phát sinh trong khoảng thời gian bạn chọn.\nNếu là lỗi, bạn vui lòng liên hệ webkynang.vn@gmail.com hoặc số hotline: 038 997 8430"]
[null,null,null,null,null,null,null,null,null,null,"Tính năng này chỉ có trong gói phí 'VIP' và 'PREMIUM'"]
[null,null,null,null,null,null,null,null,null,null,"Hết giới hạn số dòng, không chèn tiếp được."]
[null,null,null,null,null,null,null,null,null,null,"Tính năng này chỉ có trong gói phí 'PREMIUM'"]
["Next - Previous",null,null,null,null,null,null,null,null,null,"Tính năng này không hoạt động tại bảng đang chọn."]
["Phiếu thu hiện tại",null,null,null,null,null,null,null,null,null,"Bạn có muốn tạo kỳ mới không? Lưu ý hãy tạo bản copy của phần mềm đang dùng trước khi tạo kỳ mới"]
["STT Phiếu thu trước đó",null,null,null,null,null,null,null,null,null,"Đường dẫn sao lưu không tồn tại. Vui lòng kiểm tra lại"]
["STT Phiếu thu sau đó",null,null,null,null,null,null,null,null,null,"Tạo kỳ mới thành công!"]
[null,null,null,null,null,null,null,null,null,null,"Bạn có muốn lưu lại thông tin liên hệ để dùng lại cho lần sau không?"]
[null,null,null,null,null,null,null,null,null,null,"Bạn cần chọn số hợp đồng cần xem chi tiết trước khi click xem"]
[null,null,null,null,null,null,null,null,null,null,"Bạn có muốn xem chi tiết thu chi của hợp đồng đang chọn không?"]
["Phiếu chi hiện tại","PC0004-0521",null,null,null,null,null,null,null,null,"Lỗi khởi động phần mềm. Lý do: (1) Máy tính không có kết nối internet hoặc (2) Bạn chưa cài phần mềm WPRO Connect"]
["STT Phiếu chi trước đó",{"$f":"MAX(IF(LEFT(INDIRECT(\"DATA!B1:B\"&IFERROR(MATCH(B44,DATA!$B$1:$B$30098,0),1)),2)=\"PC\",ROW(INDIRECT(\"DATA!B1:B\"&MATCH(B44,DATA!$B$1:$B$30098,0)))))","v":0},null,null,null,null,null,null,null,null,"Đã quá thời gian dùng thử. Vui lòng mua bản quyền để sử dụng tiếp. Liên hệ: webkynang.vn@gmail.com; Hotline: 038 997 8430"]
["STT Phiếu chi sau đó",{"$f":"MAX(IF(LEFT(INDIRECT(\"DATA!B\"&IFERROR(MATCH(B44,DATA!$B$1:$B$30098,0),10100)&\":B10100\"),2)=\"PC\",ROW(INDIRECT(\"DATA!B\"&IFERROR(MATCH(B44,DATA!$B$1:$B$30098,0),10100)&\":B10100\"))))","v":0},null,null,null,null,null,null,null,null,"Xác nhận thành công! Mời bạn sử dụng tiếp phần mềm."]
[null,null,null,null,null,null,null,null,null,null,"Mã xác nhận chưa đúng.\nBạn hãy mở Tin nhắn điện thoại được WPRO gửi tới bạn từ số: 038 997 8430."]
[null,null,null,null,null,null,null,null,null,null,"Đã kích hoạt thành công!"]
[null,null,null,null,null,null,null,null,null,null,"Tên người dùng không được để trống."]
[null,null,null,null,null,null,null,null,null,null,"Số điện thoại không được để trống. LƯU Ý: Nhập số điện thoại của bạn để được hỗ trợ tốt hơn từ WPRO"]
[null,null,null,null,null,null,null,null,null,null,"Email không được để trống."]
[null,null,null,null,null,null,null,null,null,null,"Phần mềm chỉ kích hoạt được sau khi bạn Tick chọn Đồng ý với điều khoản sử dụng phần mềm WPRO."]
["Phiếu điều chuyển cuối",{"$f":"MAX(IFERROR(IF(MID(DATA!B1:B30008,4,2)=\"DC\",VALUE(RIGHT(DATA!B1:B30008,6))),0))","v":0}]
["Phiếu điều chuyển mới",{"$f":"\"DC\"&TEXT(B53+1,\"000000\")","v":"DC000001"}]
[]
[null,null,null,null,null,null,null,null,null,null,"NHẬP TÊN SHEET TẠI ĐÂY"]
[null,null,null,null,null,null,null,null,null,null,"Tính năng này chỉ có trong bản trả phí."]
[null,null,null,null,null,null,null,null,null,null,"Bảng khảo sát của bạn chưa hoàn thành. Bạn giúp WPRO điền đầy đủ thông tin, sau đó LƯU KẾT QUẢ KHẢO SÁT. Xin cảm ơn bạn."]
[null,null,null,null,null,null,null,null,null,null,"Hoàn tất khảo sát. Bài viết về Kinh nghiệm chạy quảng cáo sẽ hiển thị ngay sau đó. Chúc công việc kinh doanh của bạn ngày càng thành công."]
["Tiêu đề báo cáo hợp đồng",null,null,null,null,null,null,null,null,null,"TÍNH NĂNG LẬP KẾ HOẠCH VÀ QUẢN TRỊ NGÂN SÁCH DÒNG TIỀN CHỈ CÓ TRONG \"BẢN TRẢ PHÍ\"\n\n\nĐây là tính năng cho phép:\n\n- Lập kế hoạch chi tiết nhất các khoản dự kiến Thu và Chi trong tương lai\n\n- Ghi nhận thực tế đã thu và chi\n\n- Xem báo cáo tình hình thực hiện kế hoạch Thu và Chi\n\n- Quan trọng hơn cả đó là xem được báo cáo trong tương lai, Doanh nghiệp có đủ tiền để chi tiêu không.\n\n- Từ đó sẽ chủ động được kế hoạch Huy động vốn, Thu hồi nợ, Giãn nợ,... để không mất khả năng thanh toán trong ngắn hạn."]
[null,null,null,null,null,null,null,null,null,null,"TÍNH NĂNG QUẢN LÝ HỢP ĐỒNG/ CÔNG TRÌNH CHỈ CÓ TRONG \"BẢN TRẢ PHÍ\"\n\n\nĐây là tính năng cho phép:\n\n- Liệt kê danh sách các hợp đồng, công trình\n\n- Ghi nhận tổng giá trị của từng hợp đồng, công trình\n\n- Tự động tổng hợp số tiền đã thu của hợp đồng, công trình\n"]
[null,"ĐÃ THU","ĐÃ TRẢ"]
[null,"CÒN PHẢI THU","CÒN PHẢI TRẢ"]
[null,"TÊN HỢP ĐỒNG/ CÔNG TRÌNH","TÊN HỢP ĐỒNG"]
[null,"BÁO CÁO HỢP ĐỒNG ĐẦU RA / CÔNG TRÌNH","BÁO CÁO HỢP ĐỒNG ĐẦU VÀO"]

{"sheet":"DM_HDDR","index":18,"n_rows":5,"n_cols":13,"rows_kept":5,"cut":false,"hidden":false,"merged":[]}
[null,"DANH MỤC HỢP ĐỒNG (ĐẦU RA)/ CÔNG TRÌNH"]
[]
[]
["Lưu ý: Mã hợp đồng đầu vào và đầu ra không được trùng nhau"]
["MÃ HĐ/ CT","TÊN HỢP ĐỒNG/ CÔNG TRÌNH","LOẠI","GIÁ TRỊ HỢP ĐỒNG","SỐ HÓA ĐƠN","NGÀY HÓA ĐƠN","GIÁ TRỊ XUẤT HĐ","Tự đổi tên","Tự đổi tên","Tự đổi tên",null,null,"GHI CHÚ"]

{"sheet":"DM_HDDV","index":19,"n_rows":5,"n_cols":13,"rows_kept":5,"cut":false,"hidden":false,"merged":[]}
[null,"DANH MỤC HỢP ĐỒNG (ĐẦU VÀO)"]
[]
[]
["Lưu ý: Mã hợp đồng đầu vào và đầu ra không được trùng nhau"]
["MÃ HĐ","TÊN HỢP ĐỒNG","LOẠI","GIÁ TRỊ HỢP ĐỒNG","THUỘC DỰ ÁN",null,null,null,null,null,null,null,"GHI CHÚ"]

{"sheet":"DATANS","index":20,"n_rows":2,"n_cols":17,"rows_kept":2,"cut":false,"hidden":false,"merged":[[0,15,1,15],[0,16,1,16],[0,0,1,0],[0,11,1,11],[0,12,1,12],[0,13,1,13],[0,14,1,14],[0,10,1,10],[0,9,1,9],[0,1,1,1],[0,5,1,5],[0,6,0,7],[0,8,1,8],[0,2,0,4]]}
["MÃ NGÂN SÁCH","NGÀY GHI","DỰ KIẾN THU, CHI",null,null,"DIỄN GIẢI","SỐ TIỀN",null,"LOẠI CHI PHÍ","LOẠI DOANH THU",null,null,null,null,null,null,"GHI CHÚ"]
[null,null,"NGÀY","TUẦN","THÁNG",null,"THU","CHI"]

{"sheet":"BCNS","index":21,"n_rows":10,"n_cols":13,"rows_kept":10,"cut":false,"hidden":false,"merged":[[7,11,7,12],[2,1,2,12],[3,1,3,12],[7,1,8,1],[7,2,8,2],[7,3,7,5],[7,6,8,6],[7,7,7,8],[7,9,7,10]]}
[null,null,null,null,null,null,null,null,"Lưu  ý:","Những khoản chi thực tế không được gán mã ngân sách sẽ không được thống kê trong bảng này. Và ngân sách không được quản lý theo Chi nhánh/ Công ty con."]
[null,"2021-01-01","2021-06-30"]
[null,"BÁO CÁO LẬP KẾ HOẠCH & KIỂM SOÁT DÒNG TIỀN"]
[null,{"$f":"\"Từ ngày: \"&TEXT(ns_st,\"dd-mm-yyyy\")&\" - Đến ngày: \"& TEXT(ns_en,\"dd-mm-yyyy\")","v":"Từ ngày: 01-01-2021 - Đến ngày: 30-06-2021"}]
[null,"Số đầu kỳ"]
[null,"Số cuối kỳ",{"$f":"C5+L10-M10","v":0}]
[]
[null,"MÃ NGÂN SÁCH","NGÀY GHI","DỰ KIẾN THU, CHI",null,null,"DIỄN GIẢI","DỰ KIẾN",null,"THỰC TẾ ĐÃ PHÁT SINH",null,"CÒN LẠI"]
[null,null,null,"NGÀY","TUẦN","THÁNG",null,"THU","CHI","THU","CHI","THU","CHI"]
[null,null,null,null,null,null,"TỔNG",{"$f":"SUM(H11:H5000)","v":0},{"$f":"SUM(I11:I5000)","v":0},0,0,0,0]

{"sheet":"In-Chi","index":22,"n_rows":106,"n_cols":257,"rows_kept":106,"cut":false,"hidden":false,"merged":[[12,3,12,6],[12,7,12,19],[10,4,10,19],[3,13,3,19],[7,15,7,16],[7,17,7,19],[4,13,5,19],[4,6,4,12],[5,6,5,12],[6,6,6,12],[13,2,14,19],[15,3,15,4],[15,8,15,19],[16,13,16,19],[17,1,17,3],[17,4,17,7],[17,8,17,11],[17,12,17,15],[17,16,17,19],[18,16,18,19],[23,1,23,3],[23,4,23,7],[23,8,23,11],[23,12,23,15],[23,16,23,19],[28,1,29,5],[18,1,18,3],[18,4,18,7],[18,8,18,11],[18,12,18,15],[49,1,49,19],[42,1,42,3],[42,4,42,7],[42,8,42,11],[42,12,42,15],[42,16,42,19],[47,1,47,3],[47,4,47,7],[47,8,47,11],[47,12,47,15],[47,16,47,19],[48,1,48,19],[40,13,40,19],[41,1,41,3],[41,4,41,7],[41,8,41,11],[41,12,41,15],[41,16,41,19],[34,4,34,19],[4,1,5,5],[37,2,38,19],[39,3,39,4],[39,8,39,19],[36,3,36,6],[36,7,36,19],[31,15,31,16],[31,17,31,19],[29,6,29,12],[28,6,28,12],[30,6,30,12],[24,1,24,19],[25,1,25,19],[27,13,27,19],[28,13,29,19]]}
[null,null,null,"PC1","<- Nhập số phiếu tại đây (Chỉ nhập phiếu chi)",null,null,null,null,null,null,null,null,null,null,null,null,null,null,{"$f":"IF(D1=\"\",\"\",MATCH(D1,SOPHIEU,0))","v":{"$error":"#N/A"}}]
[]
[]
[null,{"$f":"ten","v":"WPRO.VN"},null,null,null,null,null,null,null,null,null,null,null,"Mẫu số 02 - TT"]
[null,{"$f":"\"Địa chỉ :\"&\" \"&DC","v":"Địa chỉ : Tầng 06, tòa nhà Sannam, 78 Duy Tân, Cầu Giấy, Hà Nội"},null,null,null,null,"PHIẾU CHI",null,null,null,null,null,null,"(Ban hành theo …. số ………………… ngày ……………... của Bộ Tài Chính)"]
[null,null,null,null,null,null,"Liên 1"]
[null,{"$f":"\"MST: \"&MST& \", SĐT: \"&sdt","v":"MST: 0107959448, SĐT: ... Sdt...."},null,null,null,null,{"$f":"\"Số: \"&D1","v":"Số: PC1"}]
[null,null,null,null,null,null,null,null,null,null,null,null,null,null,null,null,null,null,null,null,null,null,null,null,null,null,null,null,null,null,null,null,null,null,null,null,null,null,null,null,null,null,null,null,null,null,null,null,null,null,null,null,null,null,null,null,null,null,null,null,null,null,null,null,null,null,null,null,null,null,null,null,null,null,null,null,null,null,null,null,null,null,null,null,null,null,null,null,null,null,null,null,null,null,null,null,null,null,null,null,null,null,null,null,null,null,null,null,null,null,null,null,null,null,null,null,null,null,null,null,null,null,null,null,null,null,null,null,null,null,null,null,null,null,null,null,null,null,null,null,null,null,null,null,null,null,null,null,null,null,null,null,null,null,null,null,null,null,null,null,null,null,null,null,null,null,null,null,null,null,null,null,null,null,null,null,null,null,null,null,null,null,null,null,null,null,null,null,null,null,null,null,null,null,null,null,null,null,null,null,null,null,null,null,null,null,null,null,null,null,null,null,null,null,null,null,null,null,null,null,null,null,null,null,null,null,null,null,null,null,null,null,null,null,null,null,null,null,null,null,null,null,null,null,null,{"$f":"SUM(#REF!)","v":{"$error":"#REF!"}},{"$f":"SUM(#REF!)","v":{"$error":"#REF!"}},{"$f":"SUM(#REF!)","v":{"$error":"#REF!"}},{"$f":"SUM(#REF!)","v":{"$error":"#REF!"}},{"$f":"SUM(#REF!)","v":{"$error":"#REF!"}},{"$f":"SUM(#REF!)","v":{"$error":"#REF!"}},{"$f":"SUM(#REF!)","v":{"$error":"#REF!"}},{"$f":"SUM(#REF!)","v":{"$error":"#REF!"}},{"$f":"SUM(#REF!)","v":{"$error":"#REF!"}},{"$f":"SUM(#REF!)","v":{"$error":"#REF!"}},{"$f":"SUM(#REF!)","v":{"$error":"#REF!"}},{"$f":"SUM(#REF!)","v":{"$error":"#REF!"}}]
[null,null,"Họ tên người nhận tiền :",null,{"$f":"IFERROR(IF($T$1=\"\",\"\",INDEX(TEN_PS,$T$1,0)),\"\")","v":""},null,null,null,null,null,null,null,null,null,null,null,null,null,null,null,null,null,null,null,null,null,null,null,null,null,null,null,null,null,null,null,null,null,null,null,null,null,null,null,null,null,null,null,null,null,null,null,null,null,null,null,null,null,null,null,null,null,null,null,null,null,null,null,null,null,null,null,null,null,null,null,null,null,null,null,null,null,null,null,null,null,null,null,null,null,null,null,null,null,null,null,null,null,null,null,null,null,null,null,null,null,null,null,null,null,null,null,null,null,null,null,null,null,null,null,null,null,null,null,null,null,null,null,null,null,null,null,null,null,null,null,null,null,null,null,null,null,null,null,null,null,null,null,null,null,null,null,null,null,null,null,null,null,null,null,null,null,null,null,null,null,null,null,null,null,null,null,null,null,null,null,null,null,null,null,null,null,null,null,null,null,null,null,null,null,null,null,null,null,null,null,null,null,null,null,null,null,null,null,null,null,null,null,null,null,null,null,null,null,null,null,null,null,null,null,null,null,null,null,null,null,null,null,null,null,null,null,null,null,null,null,null,null,null,null,null,null,null,null,null,{"$f":"IF(#REF!=0,\"\",CHOOSE(#REF!,\"một\",\"hai\",\"ba\",\"bốn\",\"năm\",\"sáu\",\"bảy\",\"tám\",\"chín\"))","v":{"$error":"#REF!"}},{"$f":"IF(#REF!=0,IF(AND(#REF!<>0,#REF!<>0),\"lẻ\",\"\"),CHOOSE(#REF!,\"mười\",\"hai\",\"ba\",\"bốn\",\"năm\",\"sáu\",\"bảy\",\"tám\",\"chín\"))","v":{"$error":"#REF!"}},{"$f":"IF(#REF!=0,\"\",CHOOSE(#REF!,IF(#REF!>1,\"mốt\",\"một\"),\"hai\",\"ba\",\"bốn\",IF(#REF!=0,\"năm\",\"lăm\"),\"sáu\",\"bảy\",\"tám\",\"chín\"))","v":{"$error":"#REF!"}},{"$f":"IF(#REF!=0,\"\",CHOOSE(#REF!,\"một\",\"hai\",\"ba\",\"bốn\",\"năm\",\"sáu\",\"bảy\",\"tám\",\"chín\"))","v":{"$error":"#REF!"}},{"$f":"IF(#REF!=0,IF(AND(#REF!<>0,#REF!<>0),\"lẻ\",\"\"),CHOOSE(#REF!,\"mười\",\"hai\",\"ba\",\"bốn\",\"năm\",\"sáu\",\"bảy\",\"tám\",\"chín\"))","v":{"$error":"#REF!"}},{"$f":"IF(#REF!=0,\"\",CHOOSE(#REF!,IF(#REF!>1,\"mốt\",\"một\"),\"hai\",\"ba\",\"bốn\",IF(#REF!=0,\"năm\",\"lăm\"),\"sáu\",\"bảy\",\"tám\",\"chín\"))","v":{"$error":"#REF!"}},{"$f":"IF(#REF!=0,\"\",CHOOSE(#REF!,\"một\",\"hai\",\"ba\",\"bốn\",\"năm\",\"sáu\",\"bảy\",\"tám\",\"chín\"))","v":{"$error":"#REF!"}},{"$f":"IF(#REF!=0,IF(AND(#REF!<>0,#REF!<>0),\"lẻ\",\"\"),CHOOSE(#REF!,\"mười\",\"hai\",\"ba\",\"bốn\",\"năm\",\"sáu\",\"bảy\",\"tám\",\"chín\"))","v":{"$error":"#REF!"}},{"$f":"IF(#REF!=0,\"\",CHOOSE(#REF!,IF(#REF!>1,\"mốt\",\"một\"),\"hai\",\"ba\",\"bốn\",IF(#REF!=0,\"năm\",\"lăm\"),\"sáu\",\"bảy\",\"tám\",\"chín\"))","v":{"$error":"#REF!"}},{"$f":"IF(#REF!=0,\"\",CHOOSE(#REF!,\"một\",\"hai\",\"ba\",\"bốn\",\"năm\",\"sáu\",\"bảy\",\"tám\",\"chín\"))","v":{"$error":"#REF!"}},{"$f":"IF(#REF!=0,IF(AND(#REF!<>0,#REF!<>0),\"lẻ\",\"\"),CHOOSE(#REF!,\"mười\",\"hai\",\"ba\",\"bốn\",\"năm\",\"sáu\",\"bảy\",\"tám\",\"chín\"))","v":{"$error":"#REF!"}},{"$f":"IF(#REF!=0,\"\",CHOOSE(#REF!,IF(#REF!>1,\"mốt\",\"một\"),\"hai\",\"ba\",\"bốn\",IF(#REF!=0,\"năm\",\"lăm\"),\"sáu\",\"bảy\",\"tám\",\"chín\"))","v":{"$error":"#REF!"}}]
[null,null,"Địa chỉ :",null,{"$f":"IFERROR(IF($T$1=\"\",\"\",INDEX(DC_PS,$T$1,0)),\"\")","v":""},null,null,null,null,null,null,null,null,null,null,null,null,null,null,null,null,null,null,null,null,null,null,null,null,null,null,null,null,null,null,null,null,null,null,null,null,null,null,null,null,null,null,null,null,null,null,null,null,null,null,null,null,null,null,null,null,null,null,null,null,null,null,null,null,null,null,null,null,null,null,null,null,null,null,null,null,null,null,null,null,null,null,null,null,null,null,null,null,null,null,null,null,null,null,null,null,null,null,null,null,null,null,null,null,null,null,null,null,null,null,null,null,null,null,null,null,null,null,null,null,null,null,null,null,null,null,null,null,null,null,null,null,null,null,null,null,null,null,null,null,null,null,null,null,null,null,null,null,null,null,null,null,null,null,null,null,null,null,null,null,null,null,null,null,null,null,null,null,null,null,null,null,null,null,null,null,null,null,null,null,null,null,null,null,null,null,null,null,null,null,null,null,null,null,null,null,null,null,null,null,null,null,null,null,null,null,null,null,null,null,null,null,null,null,null,null,null,null,null,null,null,null,null,null,null,null,null,null,null,null,null,null,null,null,null,null,null,null,null,null,{"$f":"IF(#REF!=0,\"\",\"trăm\")","v":{"$error":"#REF!"}},{"$f":"IF(#REF!=0,\"\",IF(#REF!=1,\"\",\"mươi\"))","v":{"$error":"#REF!"}},{"$f":"IF(AND(#REF!=0,IN8=0),\"\",\"tỷ\")","v":{"$error":"#REF!"}},{"$f":"IF(#REF!=0,\"\",\"trăm\")","v":{"$error":"#REF!"}},{"$f":"IF(#REF!=0,\"\",IF(#REF!=1,\"\",\"mươi\"))","v":{"$error":"#REF!"}},{"$f":"IF(AND(#REF!=0,IQ8=0),\"\",\"triệu\")","v":{"$error":"#REF!"}},{"$f":"IF(#REF!=0,\"\",\"trăm\")","v":{"$error":"#REF!"}},{"$f":"IF(#REF!=0,\"\",IF(#REF!=1,\"\",\"mươi\"))","v":{"$error":"#REF!"}},{"$f":"IF(AND(#REF!=0,IT8=0),\"\",\"ngàn\")","v":{"$error":"#REF!"}},{"$f":"IF(#REF!=0,\"\",\"trăm\")","v":{"$error":"#REF!"}},{"$f":"IF(#REF!=0,\"\",IF(#REF!=1,\"\",\"mươi\"))","v":{"$error":"#REF!"}},"đồng."]
[null,null,"Lý do chi :",null,{"$f":"IFERROR(IF($T$1=\"\",\"\",INDEX(DG,$T$1,0)),\"\")","v":""},null,null,null,null,null,null,null,null,null,null,null,null,null,null,null,null,null,null,null,null,null,null,null,null,null,null,null,null,null,null,null,null,null,null,null,null,null,null,null,null,null,null,null,null,null,null,null,null,null,null,null,null,null,null,null,null,null,null,null,null,null,null,null,null,null,null,null,null,null,null,null,null,null,null,null,null,null,null,null,null,null,null,null,null,null,null,null,null,null,null,null,null,null,null,null,null,null,null,null,null,null,null,null,null,null,null,null,null,null,null,null,null,null,null,null,null,null,null,null,null,null,null,null,null,null,null,null,null,null,null,null,null,null,null,null,null,null,null,null,null,null,null,null,null,null,null,null,null,null,null,null,null,null,null,null,null,null,null,null,null,null,null,null,null,null,null,null,null,null,null,null,null,null,null,null,null,null,null,null,null,null,null,null,null,null,null,null,null,null,null,null,null,null,null,null,null,null,null,null,null,null,null,null,null,null,null,null,null,null,null,null,null,null,null,null,null,null,null,null,null,null,null,null,null,null,null,null,null,null,null,null,null,null,null,null,null,null,null,null,{"$f":"UPPER(LEFT(TRIM(IF(#REF!=0,\"không đồng.\",IL9&\" \"&IL10&\" \"&IM9&\" \"&IM10&\" \"&IN9&\" \"&IN10&\" \"&IO9&\" \"&IO10&\" \"&IP9&\" \"&IP10&\" \"&IQ9&\" \"&IQ10&\" \"&IR9&\" \"&IR10&\" \"&IS9&\" \"&IS10&\" \"&IT9&\" \"&IT10&\" \"&IU9&\" \"&IU10&\" \"&IV9&\" \"&IV10&\" \"&IW9&\" \"&IW10)),1))&RIGHT(TRIM(IF(#REF!=0,\"không đồng.\",IL9&\" \"&IL10&\" \"&IM9&\" \"&IM10&\" \"&IN9&\" \"&IN10&\" \"&IO9&\" \"&IO10&\" \"&IP9&\" \"&IP10&\" \"&IQ9&\" \"&IQ10&\" \"&IR9&\" \"&IR10&\" \"&IS9&\" \"&IS10&\" \"&IT9&\" \"&IT10&\" \"&IU9&\" \"&IU10&\" \"&IV9&\" \"&IV10&\" \"&IW9&\" \"&IW10)),LEN(TRIM(IF(#REF!=0,\"không đồng.\",IL9&\" \"&IL10&\" \"&IM9&\" \"&IM10&\" \"&IN9&\" \"&IN10&\" \"&IO9&\" \"&IO10&\" \"&IP9&\" \"&IP10&\" \"&IQ9&\" \"&IQ10&\" \"&IR9&\" \"&IR10&\" \"&IS9&\" \"&IS10&\" \"&IT9&\" \"&IT10&\" \"&IU9&\" \"&IU10&\" \"&IV9&\" \"&IV10&\" \"&IW9&\" \"&IW10)))-1)","v":{"$error":"#REF!"}}]
[]
[null,null,"Số tiền:",{"$f":"SUMIF(SOPHIEU,D1,CHI)","v":0},null,null,null,"VND"]
[null,null,{"$f":"\"Viết bằng chữ : \"&DocSo(D13) &\" đồng.\"","v":"Viết bằng chữ : Không đồng."}]
[]
[null,null,"Kèm theo",{"$f":"IFERROR(IF($T$1=\"\",\"\",INDEX(KEM,$T$1,0)),\"\")","v":""},null,"chứng từ gốc"]
[null,null,null,null,null,null,null,null,null,null,null,null,null,{"$f":"IFERROR(IF($T$1=\"\",\"\",INDEX(NGAY_CT,$T$1,0)),\"\")","v":""}]
[null,"Người duyệt",null,null,"Kế toán trưởng",null,null,null,"Thủ quỹ",null,null,null,"Người lập phiếu",null,null,null,"Người nhận tiền"]
[null,"(Ký, họ tên, đóng dấu)",null,null,"(Ký, họ tên)",null,null,null,"(Ký, họ tên)",null,null,null,"(Ký, họ tên)",null,null,null,"(Ký, họ tên)"]
[]
[]
[]
[]
[null,{"$f":"TEN_GD","v":"…"},null,null,{"$f":"TEN_KTT","v":"…"},null,null,null,{"$f":"TEN_TQ","v":"…"},null,null,null,{"$f":"TEN_NL","v":"…"},null,null,null,{"$f":"E9","v":""}]
[null,"Đã nhận đủ số tiền (viết bằng chữ) :………………………………………………………………………………………………………………………………………………………………"]
[null,"………………………………………………………………………………………………………………………………………………………………………………………………………………………………………….."]
[]
[null,{"$f":"+B4","v":"WPRO.VN"},null,null,null,null,null,null,null,null,null,null,null,{"$f":"+N4","v":"Mẫu số 02 - TT"}]
[null,{"$f":"\"Địa chỉ :\"&\" \"&DC","v":"Địa chỉ : Tầng 06, tòa nhà Sannam, 78 Duy Tân, Cầu Giấy, Hà Nội"},null,null,null,null,{"$f":"+G5","v":"PHIẾU CHI"},null,null,null,null,null,null,{"$f":"N5","v":"(Ban hành theo …. số ………………… ngày ……………... của Bộ Tài Chính)"}]
[null,null,null,null,null,null,"Liên 2"]
[null,{"$f":"B7","v":"MST: 0107959448, SĐT: ... Sdt...."},null,null,null,null,{"$f":"G7","v":"Số: PC1"}]
[]
[null,null,{"$f":"+C9","v":"Họ tên người nhận tiền :"},null,{"$f":"+E9","v":""}]
[null,null,{"$f":"+C10","v":"Địa chỉ :"},null,{"$f":"E10","v":""}]
[null,null,{"$f":"+C11","v":"Lý do chi :"},null,{"$f":"+E11","v":""}]
[]
[null,null,{"$f":"+C13","v":"Số tiền:"},{"$f":"+D13","v":0},null,null,null,"VND"]
[null,null,{"$f":"+C14","v":"Viết bằng chữ : Không đồng."}]
[]
[null,null,{"$f":"+C16","v":"Kèm theo"},{"$f":"+D16","v":""},null,{"$f":"+F16","v":"chứng từ gốc"},null,null,{"$f":"+I16","v":0}]
[null,null,null,null,null,null,null,null,null,null,null,null,null,{"$f":"+N17","v":""}]
[null,{"$f":"B18","v":"Người duyệt"},null,null,{"$f":"E18","v":"Kế toán trưởng"},null,null,null,{"$f":"I18","v":"Thủ quỹ"},null,null,null,{"$f":"M18","v":"Người lập phiếu"},null,null,null,{"$f":"Q18","v":"Người nhận tiền"}]
[null,"(Ký, họ tên, đóng dấu)",null,null,"(Ký, họ tên)",null,null,null,"(Ký, họ tên)",null,null,null,"(Ký, họ tên)",null,null,null,"(Ký, họ tên)"]
[]
[]
[]
[]
[null,{"$f":"B24","v":"…"},null,null,{"$f":"E24","v":"…"},null,null,null,{"$f":"I24","v":"…"},null,null,null,{"$f":"M24","v":"…"},null,null,null,{"$f":"Q24","v":""}]
[null,{"$f":"+B25","v":"Đã nhận đủ số tiền (viết bằng chữ) :………………………………………………………………………………………………………………………………………………………………"}]
[null,"………………………………………………………………………………………………………………………………………………………………………………………………………………………………………….."]
[]
[]
[]
[]
[]
[]
[]
[]
[]
[]
[]
[]
[]
[]
[]
[]
[]
[]
[]
[]
[]
[]
[]
[]
[]
[]
[]
[]
[]
[]
[]
[]
[]
[]
[]
[]
[]
[]
[]
[]
[]
[]
[]
[]
[]
[]
[]
[]
[]
[null,{"$f":"D13","v":0},{"$f":"RIGHT(\"000000000000\"&ROUND(B100,0),12)","v":"000000000000"},1,2,3,4,5,6,7,8,9,10,11,12]
[]
[null,null,null,{"$f":"VALUE(MID(C100,D100,1))","v":0},{"$f":"VALUE(MID(C100,E100,1))","v":0},{"$f":"VALUE(MID(C100,F100,1))","v":0},{"$f":"VALUE(MID(C100,G100,1))","v":0},{"$f":"VALUE(MID(C100,H100,1))","v":0},{"$f":"VALUE(MID(C100,I100,1))","v":0},{"$f":"VALUE(MID(C100,J100,1))","v":0},{"$f":"VALUE(MID(C100,K100,1))","v":0},{"$f":"VALUE(MID(C100,L100,1))","v":0},{"$f":"VALUE(MID(C100,M100,1))","v":0},{"$f":"VALUE(MID(C100,N100,1))","v":0},{"$f":"VALUE(MID(C100,O100,1))","v":0}]
[null,null,null,{"$f":"SUM(D102:D102)","v":0},{"$f":"SUM(D102:E102)","v":0},{"$f":"SUM(D102:F102)","v":0},{"$f":"SUM(G102:G102)","v":0},{"$f":"SUM(G102:H102)","v":0},{"$f":"SUM(G102:I102)","v":0},{"$f":"SUM(J102:J102)","v":0},{"$f":"SUM(J102:K102)","v":0},{"$f":"SUM(J102:L102)","v":0},{"$f":"SUM(M102:M102)","v":0},{"$f":"SUM(M102:N102)","v":0},{"$f":"SUM(M102:O102)","v":0}]
[null,null,null,{"$f":"IF(D102=0,\"\",CHOOSE(D102,\"một\",\"hai\",\"ba\",\"bốn\",\"năm\",\"sáu\",\"bảy\",\"tám\",\"chín\"))","v":""},{"$f":"IF(E102=0,IF(AND(D102<>0,F102<>0),\"lẻ\",\"\"),CHOOSE(E102,\"mười\",\"hai\",\"ba\",\"bốn\",\"năm\",\"sáu\",\"bảy\",\"tám\",\"chín\"))","v":""},{"$f":"IF(F102=0,\"\",CHOOSE(F102,IF(E102>1,\"mốt\",\"một\"),\"hai\",\"ba\",\"bốn\",IF(E102=0,\"năm\",\"lăm\"),\"sáu\",\"bảy\",\"tám\",\"chín\"))","v":""},{"$f":"IF(G102=0,\"\",CHOOSE(G102,\"một\",\"hai\",\"ba\",\"bốn\",\"năm\",\"sáu\",\"bảy\",\"tám\",\"chín\"))","v":""},{"$f":"IF(H102=0,IF(AND(G102<>0,I102<>0),\"lẻ\",\"\"),CHOOSE(H102,\"mười\",\"hai\",\"ba\",\"bốn\",\"năm\",\"sáu\",\"bảy\",\"tám\",\"chín\"))","v":""},{"$f":"IF(I102=0,\"\",CHOOSE(I102,IF(H102>1,\"mốt\",\"một\"),\"hai\",\"ba\",\"bốn\",IF(H102=0,\"năm\",\"lăm\"),\"sáu\",\"bảy\",\"tám\",\"chín\"))","v":""},{"$f":"IF(J102=0,\"\",CHOOSE(J102,\"một\",\"hai\",\"ba\",\"bốn\",\"năm\",\"sáu\",\"bảy\",\"tám\",\"chín\"))","v":""},{"$f":"IF(K102=0,IF(AND(J102<>0,L102<>0),\"lẻ\",\"\"),CHOOSE(K102,\"mười\",\"hai\",\"ba\",\"bốn\",\"năm\",\"sáu\",\"bảy\",\"tám\",\"chín\"))","v":""},{"$f":"IF(L102=0,\"\",CHOOSE(L102,IF(K102>1,\"mốt\",\"một\"),\"hai\",\"ba\",\"bốn\",IF(K102=0,\"năm\",\"lăm\"),\"sáu\",\"bảy\",\"tám\",\"chín\"))","v":""},{"$f":"IF(M102=0,\"\",CHOOSE(M102,\"một\",\"hai\",\"ba\",\"bốn\",\"năm\",\"sáu\",\"bảy\",\"tám\",\"chín\"))","v":""},{"$f":"IF(N102=0,IF(AND(M102<>0,O102<>0),\"lẻ\",\"\"),CHOOSE(N102,\"mười\",\"hai\",\"ba\",\"bốn\",\"năm\",\"sáu\",\"bảy\",\"tám\",\"chín\"))","v":""},{"$f":"IF(O102=0,\"\",CHOOSE(O102,IF(N102>1,\"mốt\",\"một\"),\"hai\",\"ba\",\"bốn\",IF(N102=0,\"năm\",\"lăm\"),\"sáu\",\"bảy\",\"tám\",\"chín\"))","v":""}]
[null,null,null,{"$f":"IF(D102=0,\"\",\"trăm\")","v":""},{"$f":"IF(E102=0,\"\",IF(E102=1,\"\",\"mươi\"))","v":""},{"$f":"IF(AND(F102=0,F103=0),\"\",\"tỷ\")","v":""},{"$f":"IF(G102=0,\"\",\"trăm\")","v":""},{"$f":"IF(H102=0,\"\",IF(H102=1,\"\",\"mươi\"))","v":""},{"$f":"IF(AND(I102=0,I103=0),\"\",\"triệu\")","v":""},{"$f":"IF(J102=0,\"\",\"trăm\")","v":""},{"$f":"IF(K102=0,\"\",IF(K102=1,\"\",\"mươi\"))","v":""},{"$f":"IF(AND(L102=0,L103=0),\"\",\"ngàn\")","v":""},{"$f":"IF(M102=0,\"\",\"trăm\")","v":""},{"$f":"IF(N102=0,\"\",IF(N102=1,\"\",\"mươi\"))","v":""},"đồng."]
[null,null,{"$f":"UPPER(LEFT(TRIM(IF(B100=0,\"không đồng.\",D104&\" \"&D105&\" \"&E104&\" \"&E105&\" \"&F104&\" \"&F105&\" \"&G104&\" \"&G105&\" \"&H104&\" \"&H105&\" \"&I104&\" \"&I105&\" \"&J104&\" \"&J105&\" \"&K104&\" \"&K105&\" \"&L104&\" \"&L105&\" \"&M104&\" \"&M105&\" \"&N104&\" \"&N105&\" \"&O104&\" \"&O105)),1))&RIGHT(TRIM(IF(B100=0,\"không đồng.\",D104&\" \"&D105&\" \"&E104&\" \"&E105&\" \"&F104&\" \"&F105&\" \"&G104&\" \"&G105&\" \"&H104&\" \"&H105&\" \"&I104&\" \"&I105&\" \"&J104&\" \"&J105&\" \"&K104&\" \"&K105&\" \"&L104&\" \"&L105&\" \"&M104&\" \"&M105&\" \"&N104&\" \"&N105&\" \"&O104&\" \"&O105)),LEN(TRIM(IF(B100=0,\"không đồng.\",D104&\" \"&D105&\" \"&E104&\" \"&E105&\" \"&F104&\" \"&F105&\" \"&G104&\" \"&G105&\" \"&H104&\" \"&H105&\" \"&I104&\" \"&I105&\" \"&J104&\" \"&J105&\" \"&K104&\" \"&K105&\" \"&L104&\" \"&L105&\" \"&M104&\" \"&M105&\" \"&N104&\" \"&N105&\" \"&O104&\" \"&O105)))-1)","v":"Không đồng."}]

{"sheet":"In-Thu","index":23,"n_rows":83,"n_cols":257,"rows_kept":83,"cut":false,"hidden":false,"merged":[[3,13,3,19],[4,13,5,19],[4,1,5,5],[4,6,4,12],[5,6,5,12],[7,24,7,25],[11,3,11,6],[11,7,11,19],[7,15,7,16],[7,17,7,19],[10,4,10,19],[34,4,34,19],[23,7,23,11],[23,12,23,15],[23,16,23,19],[12,2,13,19],[14,3,14,4],[15,13,15,19],[16,1,16,3],[16,4,16,6],[16,7,16,11],[16,12,16,15],[16,16,16,19],[31,15,31,16],[31,17,31,19],[38,8,38,19],[39,13,39,19],[40,1,40,3],[35,3,35,6],[35,7,35,19],[36,2,37,19],[40,4,40,6],[40,7,40,11],[40,12,40,15],[40,16,40,19],[52,6,52,9],[14,7,14,19],[41,1,41,3],[41,4,41,6],[41,7,41,11],[41,12,41,15],[41,16,41,19],[47,1,47,3],[47,4,47,6],[47,7,47,11],[47,12,47,15],[47,16,47,19],[38,3,38,4],[48,1,48,19],[49,1,49,19],[51,6,51,9],[6,6,6,12],[28,6,28,12],[29,6,29,12],[30,6,30,12],[28,1,29,5],[24,1,24,19],[25,1,25,19],[27,13,27,19],[28,13,29,19],[17,1,17,3],[17,4,17,6],[17,7,17,11],[17,12,17,15],[17,16,17,19],[23,1,23,3],[23,4,23,6]]}
[null,null,null,"pt3","<- Nhập số phiếu tại đây (Chỉ nhập phiếu thu)",null,null,null,null,null,null,null,null,null,null,null,null,null,null,{"$f":"IF(D1=\"\",\"\",MATCH(D1,SOPHIEU,0))","v":{"$error":"#N/A"}}]
[]
[]
[null,{"$f":"ten","v":"WPRO.VN"},null,null,null,null,null,null,null,null,null,null,null,"Mẫu số 01 - TT"]
[null,{"$f":"\"Địa chỉ :\"&\" \"&DC","v":"Địa chỉ : Tầng 06, tòa nhà Sannam, 78 Duy Tân, Cầu Giấy, Hà Nội"},null,null,null,null,"PHIẾU THU",null,null,null,null,null,null,"(Ban hành theo …. số ………………… ngày ……………... của Bộ Tài Chính)"]
[null,null,null,null,null,null,{"$f":"\"Số: \"&D1","v":"Số: pt3"}]
[null,{"$f":"'In-Chi'!B7","v":"MST: 0107959448, SĐT: ... Sdt...."},null,null,null,null,"Liên 1"]
[null,null,null,null,null,null,null,null,null,null,null,null,null,null,null,null,null,null,null,null,null,null,null,null,null,null,null,null,null,null,null,null,null,null,null,null,null,null,null,null,null,null,null,null,null,null,null,null,null,null,null,null,null,null,null,null,null,null,null,null,null,null,null,null,null,null,null,null,null,null,null,null,null,null,null,null,null,null,null,null,null,null,null,null,null,null,null,null,null,null,null,null,null,null,null,null,null,null,null,null,null,null,null,null,null,null,null,null,null,null,null,null,null,null,null,null,null,null,null,null,null,null,null,null,null,null,null,null,null,null,null,null,null,null,null,null,null,null,null,null,null,null,null,null,null,null,null,null,null,null,null,null,null,null,null,null,null,null,null,null,null,null,null,null,null,null,null,null,null,null,null,null,null,null,null,null,null,null,null,null,null,null,null,null,null,null,null,null,null,null,null,null,null,null,null,null,null,null,null,null,null,null,null,null,null,null,null,null,null,null,null,null,null,null,null,null,null,null,null,null,null,null,null,null,null,null,null,null,null,null,null,null,null,null,null,null,null,null,null,null,null,null,null,{"$f":"'In-Thu'!D12","v":0},{"$f":"RIGHT(\"000000000000\"&ROUND(IJ8,0),12)","v":"000000000000"},1,2,3,4,5,6,7,8,9,10,11,12]
[null,null,"Họ tên người nộp tiền :",null,{"$f":"IFERROR(IF($T$1=\"\",\"\",INDEX(TEN_PS,$T$1,0)),\"\")","v":""},null,null,null,null,null,null,null,null,null,null,null,null,null,null,null,null,null,null,null,null,null,null,null,null,null,null,null,null,null,null,null,null,null,null,null,null,null,null,null,null,null,null,null,null,null,null,null,null,null,null,null,null,null,null,null,null,null,null,null,null,null,null,null,null,null,null,null,null,null,null,null,null,null,null,null,null,null,null,null,null,null,null,null,null,null,null,null,null,null,null,null,null,null,null,null,null,null,null,null,null,null,null,null,null,null,null,null,null,null,null,null,null,null,null,null,null,null,null,null,null,null,null,null,null,null,null,null,null,null,null,null,null,null,null,null,null,null,null,null,null,null,null,null,null,null,null,null,null,null,null,null,null,null,null,null,null,null,null,null,null,null,null,null,null,null,null,null,null,null,null,null,null,null,null,null,null,null,null,null,null,null,null,null,null,null,null,null,null,null,null,null,null,null,null,null,null,null,null,null,null,null,null,null,null,null,null,null,null,null,null,null,null,null,null,null,null,null,null,null,null,null,null,null,null,null,null,null,null,null,null,null,null,null,null,null,null,null,null,null,null,{"$f":"IF(#REF!=0,\"\",CHOOSE(#REF!,\"một\",\"hai\",\"ba\",\"bốn\",\"năm\",\"sáu\",\"bảy\",\"tám\",\"chín\"))","v":{"$error":"#REF!"}},{"$f":"IF(#REF!=0,IF(AND(#REF!<>0,#REF!<>0),\"lẻ\",\"\"),CHOOSE(#REF!,\"mười\",\"hai\",\"ba\",\"bốn\",\"năm\",\"sáu\",\"bảy\",\"tám\",\"chín\"))","v":{"$error":"#REF!"}},{"$f":"IF(#REF!=0,\"\",CHOOSE(#REF!,IF(#REF!>1,\"mốt\",\"một\"),\"hai\",\"ba\",\"bốn\",IF(#REF!=0,\"năm\",\"lăm\"),\"sáu\",\"bảy\",\"tám\",\"chín\"))","v":{"$error":"#REF!"}},{"$f":"IF(#REF!=0,\"\",CHOOSE(#REF!,\"một\",\"hai\",\"ba\",\"bốn\",\"năm\",\"sáu\",\"bảy\",\"tám\",\"chín\"))","v":{"$error":"#REF!"}},{"$f":"IF(#REF!=0,IF(AND(#REF!<>0,#REF!<>0),\"lẻ\",\"\"),CHOOSE(#REF!,\"mười\",\"hai\",\"ba\",\"bốn\",\"năm\",\"sáu\",\"bảy\",\"tám\",\"chín\"))","v":{"$error":"#REF!"}},{"$f":"IF(#REF!=0,\"\",CHOOSE(#REF!,IF(#REF!>1,\"mốt\",\"một\"),\"hai\",\"ba\",\"bốn\",IF(#REF!=0,\"năm\",\"lăm\"),\"sáu\",\"bảy\",\"tám\",\"chín\"))","v":{"$error":"#REF!"}},{"$f":"IF(#REF!=0,\"\",CHOOSE(#REF!,\"một\",\"hai\",\"ba\",\"bốn\",\"năm\",\"sáu\",\"bảy\",\"tám\",\"chín\"))","v":{"$error":"#REF!"}},{"$f":"IF(#REF!=0,IF(AND(#REF!<>0,#REF!<>0),\"lẻ\",\"\"),CHOOSE(#REF!,\"mười\",\"hai\",\"ba\",\"bốn\",\"năm\",\"sáu\",\"bảy\",\"tám\",\"chín\"))","v":{"$error":"#REF!"}},{"$f":"IF(#REF!=0,\"\",CHOOSE(#REF!,IF(#REF!>1,\"mốt\",\"một\"),\"hai\",\"ba\",\"bốn\",IF(#REF!=0,\"năm\",\"lăm\"),\"sáu\",\"bảy\",\"tám\",\"chín\"))","v":{"$error":"#REF!"}},{"$f":"IF(#REF!=0,\"\",CHOOSE(#REF!,\"một\",\"hai\",\"ba\",\"bốn\",\"năm\",\"sáu\",\"bảy\",\"tám\",\"chín\"))","v":{"$error":"#REF!"}},{"$f":"IF(#REF!=0,IF(AND(#REF!<>0,#REF!<>0),\"lẻ\",\"\"),CHOOSE(#REF!,\"mười\",\"hai\",\"ba\",\"bốn\",\"năm\",\"sáu\",\"bảy\",\"tám\",\"chín\"))","v":{"$error":"#REF!"}},{"$f":"IF(#REF!=0,\"\",CHOOSE(#REF!,IF(#REF!>1,\"mốt\",\"một\"),\"hai\",\"ba\",\"bốn\",IF(#REF!=0,\"năm\",\"lăm\"),\"sáu\",\"bảy\",\"tám\",\"chín\"))","v":{"$error":"#REF!"}}]
[null,null,"Địa chỉ :",null,{"$f":"IFERROR(IF($T$1=\"\",\"\",INDEX(DC_PS,$T$1,0)),\"\")","v":""},null,null,null,null,null,null,null,null,null,null,null,null,null,null,null,null,null,null,null,null,null,null,null,null,null,null,null,null,null,null,null,null,null,null,null,null,null,null,null,null,null,null,null,null,null,null,null,null,null,null,null,null,null,null,null,null,null,null,null,null,null,null,null,null,null,null,null,null,null,null,null,null,null,null,null,null,null,null,null,null,null,null,null,null,null,null,null,null,null,null,null,null,null,null,null,null,null,null,null,null,null,null,null,null,null,null,null,null,null,null,null,null,null,null,null,null,null,null,null,null,null,null,null,null,null,null,null,null,null,null,null,null,null,null,null,null,null,null,null,null,null,null,null,null,null,null,null,null,null,null,null,null,null,null,null,null,null,null,null,null,null,null,null,null,null,null,null,null,null,null,null,null,null,null,null,null,null,null,null,null,null,null,null,null,null,null,null,null,null,null,null,null,null,null,null,null,null,null,null,null,null,null,null,null,null,null,null,null,null,null,null,null,null,null,null,null,null,null,null,null,null,null,null,null,null,null,null,null,null,null,null,null,null,null,null,null,null,null,null,null,{"$f":"IF(#REF!=0,\"\",\"trăm\")","v":{"$error":"#REF!"}},{"$f":"IF(#REF!=0,\"\",IF(#REF!=1,\"\",\"mươi\"))","v":{"$error":"#REF!"}},{"$f":"IF(AND(#REF!=0,#REF!=0),\"\",\"tỷ\")","v":{"$error":"#REF!"}},{"$f":"IF(#REF!=0,\"\",\"trăm\")","v":{"$error":"#REF!"}},{"$f":"IF(#REF!=0,\"\",IF(#REF!=1,\"\",\"mươi\"))","v":{"$error":"#REF!"}},{"$f":"IF(AND(#REF!=0,#REF!=0),\"\",\"triệu\")","v":{"$error":"#REF!"}},{"$f":"IF(#REF!=0,\"\",\"trăm\")","v":{"$error":"#REF!"}},{"$f":"IF(#REF!=0,\"\",IF(#REF!=1,\"\",\"mươi\"))","v":{"$error":"#REF!"}},{"$f":"IF(AND(#REF!=0,#REF!=0),\"\",\"ngàn\")","v":{"$error":"#REF!"}},{"$f":"IF(#REF!=0,\"\",\"trăm\")","v":{"$error":"#REF!"}},{"$f":"IF(#REF!=0,\"\",IF(#REF!=1,\"\",\"mươi\"))","v":{"$error":"#REF!"}},"đồng."]
[null,null,"Lý do nộp :",null,{"$f":"IFERROR(IF($T$1=\"\",\"\",INDEX(DG,$T$1,0)),\"\")","v":""},null,null,null,null,null,null,null,null,null,null,null,null,null,null,null,null,null,null,null,null,null,null,null,null,null,null,null,null,null,null,null,null,null,null,null,null,null,null,null,null,null,null,null,null,null,null,null,null,null,null,null,null,null,null,null,null,null,null,null,null,null,null,null,null,null,null,null,null,null,null,null,null,null,null,null,null,null,null,null,null,null,null,null,null,null,null,null,null,null,null,null,null,null,null,null,null,null,null,null,null,null,null,null,null,null,null,null,null,null,null,null,null,null,null,null,null,null,null,null,null,null,null,null,null,null,null,null,null,null,null,null,null,null,null,null,null,null,null,null,null,null,null,null,null,null,null,null,null,null,null,null,null,null,null,null,null,null,null,null,null,null,null,null,null,null,null,null,null,null,null,null,null,null,null,null,null,null,null,null,null,null,null,null,null,null,null,null,null,null,null,null,null,null,null,null,null,null,null,null,null,null,null,null,null,null,null,null,null,null,null,null,null,null,null,null,null,null,null,null,null,null,null,null,null,null,null,null,null,null,null,null,null,null,null,null,null,null,null,null,{"$f":"UPPER(LEFT(TRIM(IF(IJ8=0,\"không đồng.\",IL9&\" \"&IL10&\" \"&IM9&\" \"&IM10&\" \"&IN9&\" \"&IN10&\" \"&IO9&\" \"&IO10&\" \"&IP9&\" \"&IP10&\" \"&IQ9&\" \"&IQ10&\" \"&IR9&\" \"&IR10&\" \"&IS9&\" \"&IS10&\" \"&IT9&\" \"&IT10&\" \"&IU9&\" \"&IU10&\" \"&IV9&\" \"&IV10&\" \"&IW9&\" \"&IW10)),1))&RIGHT(TRIM(IF(IJ8=0,\"không đồng.\",IL9&\" \"&IL10&\" \"&IM9&\" \"&IM10&\" \"&IN9&\" \"&IN10&\" \"&IO9&\" \"&IO10&\" \"&IP9&\" \"&IP10&\" \"&IQ9&\" \"&IQ10&\" \"&IR9&\" \"&IR10&\" \"&IS9&\" \"&IS10&\" \"&IT9&\" \"&IT10&\" \"&IU9&\" \"&IU10&\" \"&IV9&\" \"&IV10&\" \"&IW9&\" \"&IW10)),LEN(TRIM(IF(IJ8=0,\"không đồng.\",IL9&\" \"&IL10&\" \"&IM9&\" \"&IM10&\" \"&IN9&\" \"&IN10&\" \"&IO9&\" \"&IO10&\" \"&IP9&\" \"&IP10&\" \"&IQ9&\" \"&IQ10&\" \"&IR9&\" \"&IR10&\" \"&IS9&\" \"&IS10&\" \"&IT9&\" \"&IT10&\" \"&IU9&\" \"&IU10&\" \"&IV9&\" \"&IV10&\" \"&IW9&\" \"&IW10)))-1)","v":"Không đồng."}]
[null,null,"Số tiền:",{"$f":"SUMIF(SOPHIEU,D1,THU)","v":0},null,null,null,"VND"]
[null,null,{"$f":"\"Viết bằng chữ : \"&DocSo(D12)&\" đồng.\"","v":"Viết bằng chữ : Không đồng."}]
[]
[null,null,"Kèm theo",{"$f":"IFERROR(IF($T$1=\"\",\"\",INDEX(KEM,$T$1,0)),\"\")","v":""},null,"chứng từ gốc"]
[null,null,null,null,null,null,null,null,null,null,null,null,null,{"$f":"IFERROR(IF($T$1=\"\",\"\",INDEX(NGAY_CT,$T$1,0)),\"\")","v":""}]
[null,"Người duyệt",null,null,"Kế toán trưởng",null,null,"Người nộp tiền",null,null,null,null,"Người lập phiếu",null,null,null,"Thủ quỹ"]
[null,"(Ký, họ tên, đóng dấu)",null,null,"(Ký, họ tên)",null,null,"(Ký, họ tên)",null,null,null,null,"(Ký, họ tên)",null,null,null,"(Ký, họ tên)"]
[]
[]
[]
[]
[]
[null,{"$f":"TEN_GD","v":"…"},null,null,{"$f":"TEN_KTT","v":"…"},null,null,{"$f":"E9","v":""},null,null,null,null,{"$f":"TEN_NL","v":"…"},null,null,null,{"$f":"TEN_TQ","v":"…"}]
[null,"Đã nhận đủ số tiền (viết bằng chữ) :………………………………………………………………………………………………………………………………………………………………"]
[null,"………………………………………………………………………………………………………………………………………………………………………………………………………………………………………….."]
[]
[null,{"$f":"+B4","v":"WPRO.VN"},null,null,null,null,null,null,null,null,null,null,null,{"$f":"+N4","v":"Mẫu số 01 - TT"}]
[null,{"$f":"+B5","v":"Địa chỉ : Tầng 06, tòa nhà Sannam, 78 Duy Tân, Cầu Giấy, Hà Nội"},null,null,null,null,{"$f":"G5","v":"PHIẾU THU"},null,null,null,null,null,null,{"$f":"+N5","v":"(Ban hành theo …. số ………………… ngày ……………... của Bộ Tài Chính)"}]
[null,null,null,null,null,null,{"$f":"G6","v":"Số: pt3"}]
[null,{"$f":"B7","v":"MST: 0107959448, SĐT: ... Sdt...."},null,null,null,null,"Liên 2"]
[]
[null,null,{"$f":"+C9","v":"Họ tên người nộp tiền :"},null,{"$f":"+E9","v":""}]
[null,null,{"$f":"+C10","v":"Địa chỉ :"},null,{"$f":"+E10","v":""}]
[null,null,{"$f":"+C11","v":"Lý do nộp :"},null,{"$f":"+E11","v":""}]
[null,null,{"$f":"+C12","v":"Số tiền:"},{"$f":"+D12","v":0},null,null,null,"VND"]
[null,null,{"$f":"+C13","v":"Viết bằng chữ : Không đồng."}]
[]
[null,null,{"$f":"+C15","v":"Kèm theo"},{"$f":"+D15","v":""},null,{"$f":"+F15","v":"chứng từ gốc"},null,null,{"$f":"H15","v":0}]
[null,null,null,null,null,null,null,null,null,null,null,null,null,{"$f":"N16","v":""}]
[null,"Người duyệt",null,null,"Kế toán trưởng",null,null,"Người nộp tiền",null,null,null,null,"Người lập phiếu",null,null,null,"Thủ quỹ"]
[null,"(Ký, họ tên, đóng dấu)",null,null,"(Ký, họ tên)",null,null,"(Ký, họ tên)",null,null,null,null,"(Ký, họ tên)",null,null,null,"(Ký, họ tên)"]
[]
[]
[]
[]
[]
[null,{"$f":"B24","v":"…"},null,null,{"$f":"E24","v":"…"},null,null,{"$f":"H24","v":""},null,null,null,null,{"$f":"M24","v":"…"},null,null,null,{"$f":"Q24","v":"…"}]
[null,{"$f":"+B25","v":"Đã nhận đủ số tiền (viết bằng chữ) :………………………………………………………………………………………………………………………………………………………………"}]
[null,"………………………………………………………………………………………………………………………………………………………………………………………………………………………………………….."]
[]
[]
[]
[]
[]
[]
[]
[]
[]
[]
[]
[]
[]
[]
[]
[]
[]
[]
[]
[]
[]
[]
[]
[]
[]
[]
[]
[null,{"$f":"D12","v":0},{"$f":"RIGHT(\"000000000000\"&ROUND(B78,0),12)","v":"000000000000"},1,2,3,4,5,6,7,8,9,10,11,12]
[null,null,null,{"$f":"VALUE(MID(C78,D78,1))","v":0},{"$f":"VALUE(MID(C78,E78,1))","v":0},{"$f":"VALUE(MID(C78,F78,1))","v":0},{"$f":"VALUE(MID(C78,G78,1))","v":0},{"$f":"VALUE(MID(C78,H78,1))","v":0},{"$f":"VALUE(MID(C78,I78,1))","v":0},{"$f":"VALUE(MID(C78,J78,1))","v":0},{"$f":"VALUE(MID(C78,K78,1))","v":0},{"$f":"VALUE(MID(C78,L78,1))","v":0},{"$f":"VALUE(MID(C78,M78,1))","v":0},{"$f":"VALUE(MID(C78,N78,1))","v":0},{"$f":"VALUE(MID(C78,O78,1))","v":0}]
[null,null,null,{"$f":"SUM(D79:D79)","v":0},{"$f":"SUM(D79:E79)","v":0},{"$f":"SUM(D79:F79)","v":0},{"$f":"SUM(G79:G79)","v":0},{"$f":"SUM(G79:H79)","v":0},{"$f":"SUM(G79:I79)","v":0},{"$f":"SUM(J79:J79)","v":0},{"$f":"SUM(J79:K79)","v":0},{"$f":"SUM(J79:L79)","v":0},{"$f":"SUM(M79:M79)","v":0},{"$f":"SUM(M79:N79)","v":0},{"$f":"SUM(M79:O79)","v":0}]
[null,null,null,{"$f":"IF(D79=0,\"\",CHOOSE(D79,\"một\",\"hai\",\"ba\",\"bốn\",\"năm\",\"sáu\",\"bảy\",\"tám\",\"chín\"))","v":""},{"$f":"IF(E79=0,IF(AND(D79<>0,F79<>0),\"lẻ\",\"\"),CHOOSE(E79,\"mười\",\"hai\",\"ba\",\"bốn\",\"năm\",\"sáu\",\"bảy\",\"tám\",\"chín\"))","v":""},{"$f":"IF(F79=0,\"\",CHOOSE(F79,IF(E79>1,\"mốt\",\"một\"),\"hai\",\"ba\",\"bốn\",IF(E79=0,\"năm\",\"lăm\"),\"sáu\",\"bảy\",\"tám\",\"chín\"))","v":""},{"$f":"IF(G79=0,\"\",CHOOSE(G79,\"một\",\"hai\",\"ba\",\"bốn\",\"năm\",\"sáu\",\"bảy\",\"tám\",\"chín\"))","v":""},{"$f":"IF(H79=0,IF(AND(G79<>0,I79<>0),\"lẻ\",\"\"),CHOOSE(H79,\"mười\",\"hai\",\"ba\",\"bốn\",\"năm\",\"sáu\",\"bảy\",\"tám\",\"chín\"))","v":""},{"$f":"IF(I79=0,\"\",CHOOSE(I79,IF(H79>1,\"mốt\",\"một\"),\"hai\",\"ba\",\"bốn\",IF(H79=0,\"năm\",\"lăm\"),\"sáu\",\"bảy\",\"tám\",\"chín\"))","v":""},{"$f":"IF(J79=0,\"\",CHOOSE(J79,\"một\",\"hai\",\"ba\",\"bốn\",\"năm\",\"sáu\",\"bảy\",\"tám\",\"chín\"))","v":""},{"$f":"IF(K79=0,IF(AND(J79<>0,L79<>0),\"lẻ\",\"\"),CHOOSE(K79,\"mười\",\"hai\",\"ba\",\"bốn\",\"năm\",\"sáu\",\"bảy\",\"tám\",\"chín\"))","v":""},{"$f":"IF(L79=0,\"\",CHOOSE(L79,IF(K79>1,\"mốt\",\"một\"),\"hai\",\"ba\",\"bốn\",IF(K79=0,\"năm\",\"lăm\"),\"sáu\",\"bảy\",\"tám\",\"chín\"))","v":""},{"$f":"IF(M79=0,\"\",CHOOSE(M79,\"một\",\"hai\",\"ba\",\"bốn\",\"năm\",\"sáu\",\"bảy\",\"tám\",\"chín\"))","v":""},{"$f":"IF(N79=0,IF(AND(M79<>0,O79<>0),\"lẻ\",\"\"),CHOOSE(N79,\"mười\",\"hai\",\"ba\",\"bốn\",\"năm\",\"sáu\",\"bảy\",\"tám\",\"chín\"))","v":""},{"$f":"IF(O79=0,\"\",CHOOSE(O79,IF(N79>1,\"mốt\",\"một\"),\"hai\",\"ba\",\"bốn\",IF(N79=0,\"năm\",\"lăm\"),\"sáu\",\"bảy\",\"tám\",\"chín\"))","v":""}]
[null,null,null,{"$f":"IF(D79=0,\"\",\"trăm\")","v":""},{"$f":"IF(E79=0,\"\",IF(E79=1,\"\",\"mươi\"))","v":""},{"$f":"IF(AND(F79=0,F80=0),\"\",\"tỷ\")","v":""},{"$f":"IF(G79=0,\"\",\"trăm\")","v":""},{"$f":"IF(H79=0,\"\",IF(H79=1,\"\",\"mươi\"))","v":""},{"$f":"IF(AND(I79=0,I80=0),\"\",\"triệu\")","v":""},{"$f":"IF(J79=0,\"\",\"trăm\")","v":""},{"$f":"IF(K79=0,\"\",IF(K79=1,\"\",\"mươi\"))","v":""},{"$f":"IF(AND(L79=0,L80=0),\"\",\"ngàn\")","v":""},{"$f":"IF(M79=0,\"\",\"trăm\")","v":""},{"$f":"IF(N79=0,\"\",IF(N79=1,\"\",\"mươi\"))","v":""},"đồng."]
[null,null,{"$f":"UPPER(LEFT(TRIM(IF(B78=0,\"không đồng.\",D81&\" \"&D82&\" \"&E81&\" \"&E82&\" \"&F81&\" \"&F82&\" \"&G81&\" \"&G82&\" \"&H81&\" \"&H82&\" \"&I81&\" \"&I82&\" \"&J81&\" \"&J82&\" \"&K81&\" \"&K82&\" \"&L81&\" \"&L82&\" \"&M81&\" \"&M82&\" \"&N81&\" \"&N82&\" \"&O81&\" \"&O82)),1))&RIGHT(TRIM(IF(B78=0,\"không đồng.\",D81&\" \"&D82&\" \"&E81&\" \"&E82&\" \"&F81&\" \"&F82&\" \"&G81&\" \"&G82&\" \"&H81&\" \"&H82&\" \"&I81&\" \"&I82&\" \"&J81&\" \"&J82&\" \"&K81&\" \"&K82&\" \"&L81&\" \"&L82&\" \"&M81&\" \"&M82&\" \"&N81&\" \"&N82&\" \"&O81&\" \"&O82)),LEN(TRIM(IF(B78=0,\"không đồng.\",D81&\" \"&D82&\" \"&E81&\" \"&E82&\" \"&F81&\" \"&F82&\" \"&G81&\" \"&G82&\" \"&H81&\" \"&H82&\" \"&I81&\" \"&I82&\" \"&J81&\" \"&J82&\" \"&K81&\" \"&K82&\" \"&L81&\" \"&L82&\" \"&M81&\" \"&M82&\" \"&N81&\" \"&N82&\" \"&O81&\" \"&O82)))-1)","v":"Không đồng."}]

{"sheet":"DM_LHE","index":24,"n_rows":5,"n_cols":9,"rows_kept":5,"cut":false,"hidden":false,"merged":[]}
[null,"DANH MỤC NGƯỜI NHẬN TIỀN/ NỘP TIỀN"]
[]
[]
[]
["TÊN NGƯỜI NHẬN","ĐƠN VỊ","ĐỊA CHỈ","Tự đổi tên","Tự đổi tên","Tự đổi tên","Tự đổi tên","Tự đổi tên","GHI CHÚ"]

{"sheet":"DM","index":25,"n_rows":5,"n_cols":9,"rows_kept":5,"cut":false,"hidden":false,"merged":[]}
[null,"DANH MỤC"]
[]
[]
[null,"Tổng",{"$f":"SUM(C6:C109)","v":0}]
["MÃ TÀI KHOẢN TIỀN","TÊN TÀI KHOẢN","SỐ DƯ ĐẦU (vnđ)","GHI CHÚ",null,"LOẠI CHI PHÍ","LOẠI DOANH THU",null,"CHI NHÁNH/ CÔNG TY CON"]

{"sheet":"CF1","index":26,"n_rows":27,"n_cols":16,"rows_kept":27,"cut":false,"hidden":false,"merged":[]}
[null,"BÁO CÁO LẬP KẾ HOẠCH DÒNG TIỀN (THEO THÁNG)"]
[]
[null,null,"Số tiền đầu kỳ:",100000,null,null,null,null,"FORM NÀY SẼ LÀM SAU (NẾU CÓ HƯỚNG XỬ LÝ TRIỆT ĐỂ)"]
[]
[null,null,"Chỉ tiêu","T1","T2","T3","T4","T5","T6","T7","T8","T9","T10","T11","T12","Tổng"]
[null,null,"Số dư đầu kỳ",{"$f":"+D3","v":100000},{"$f":"D27","v":100000},{"$f":"E27","v":100000},100000,100000,100000,100000,100000,100000,100000,100000,100000]
[null,null,"Dòng thu",{"$f":"SUM(D8:D16)","v":0},{"$f":"SUM(E8:E16)","v":0},0,0,0,0,0,0,0,0,0,0,0]
[null,null,"A"]
[null,null,"B"]
[null,null,"C"]
[]
[]
[]
[]
[]
[]
[null,null,"Dòng Chi",{"$f":"SUM(D18:D26)","v":0},{"$f":"SUM(E18:E26)","v":0},{"$f":"SUM(F18:F26)","v":0},{"$f":"SUM(G18:G26)","v":0},{"$f":"SUM(H18:H26)","v":0},{"$f":"SUM(I18:I26)","v":0},{"$f":"SUM(J18:J26)","v":0},{"$f":"SUM(K18:K26)","v":0},{"$f":"SUM(L18:L26)","v":0},{"$f":"SUM(M18:M26)","v":0},{"$f":"SUM(N18:N26)","v":0},{"$f":"SUM(O18:O26)","v":0},{"$f":"SUM(P18:P26)","v":0}]
[]
[]
[]
[]
[]
[]
[]
[]
[]
[null,null,"Số dư cuối kỳ",{"$f":"+D6+D7-D17","v":100000},{"$f":"+E6+E7-E17","v":100000},100000,100000,100000,100000,100000,100000,100000,100000,100000,100000]